Body,Body Name,Date,Transaction Number,Invoice Number,Amount,Supplier Name,Supplier ID ,VAT Registration Number ,Expense Area,Expense Type,Expense Code,Purchase Order
http://statistics.data.gov.uk/id/local-authority/29UP,Tonbridge & Malling Borough Council,6/1/2022,0011044393/1,11044393, 130.00,Atac Solutions LTD,01558800,,BRREP LeybourneCP SewageDigest,Leybourne Lakes Country Park,M15HLP20001961,110069516
http://statistics.data.gov.uk/id/local-authority/29UP,Tonbridge & Malling Borough Council,6/1/2022,0011044394/1,11044394, 185.00,Atac Solutions LTD,01558800,,BRREP LeybourneCP SewageDigest,Leybourne Lakes Country Park,M15HLP20001961,110069532
http://statistics.data.gov.uk/id/local-authority/29UP,Tonbridge & Malling Borough Council,6/1/2022,0011044395/1,11044395, 296.89,Atac Solutions LTD,01558800,,BRREP LeybourneCP SewageDigest,Leybourne Lakes Country Park,M15HLP20001961,110069533
http://statistics.data.gov.uk/id/local-authority/29UP,Tonbridge & Malling Borough Council,6/1/2022,0011044396/1,11044396, 554.19,Westcountry Group,00656400,,Purchases,Central Stationery Stock A/c,K03AD000001002,110069544
http://statistics.data.gov.uk/id/local-authority/29UP,Tonbridge & Malling Borough Council,6/1/2022,0011044398/1,11044398, 441.86,Thomas Fattorini Ltd,00101500,,Other Expenses,Mayoral & Other Member Support,D29LX000048010,110069490
http://statistics.data.gov.uk/id/local-authority/29UP,Tonbridge & Malling Borough Council,6/1/2022,0011044399/1,11044399, 260.00,Willow Pumps Ltd,00114100,,BRREP Servicing - Pumping Stn,Ton Sportsgrnd Bldgs / Toilets,M15HCP20001931,110069561
http://statistics.data.gov.uk/id/local-authority/29UP,Tonbridge & Malling Borough Council,6/1/2022,0011044400/1,11044400, 136.99,KCS,00054200,,Postages - General,Customer Services,D23CS000045004,110069547
http://statistics.data.gov.uk/id/local-authority/29UP,Tonbridge & Malling Borough Council,6/1/2022,0011044401/1,11044401, 2500.00,PV Environmental Surveys,00987200,,BRREP General Maintenance,Shops & Maisonettes,M15NAP10001900,110069519
http://statistics.data.gov.uk/id/local-authority/29UP,Tonbridge & Malling Borough Council,6/1/2022,0011044402/1,11044402, 450.00,PV Environmental Surveys,00987200,,BRREP General Maintenance,Shops & Maisonettes,M15NAP10001900,110069449
http://statistics.data.gov.uk/id/local-authority/29UP,Tonbridge & Malling Borough Council,6/1/2022,0011044403/1,11044403, 260.80,Speedy Services (Speedy Hire),01840400,,BRREP General Maintenance,Angel Centre,M15HAP10001900,110069477
http://statistics.data.gov.uk/id/local-authority/29UP,Tonbridge & Malling Borough Council,6/1/2022,0011044404/1,11044404, 401.10,Speedy Services (Speedy Hire),01840400,,BRREP General Maintenance,Angel Centre,M15HAP10001900,110069477
http://statistics.data.gov.uk/id/local-authority/29UP,Tonbridge & Malling Borough Council,6/1/2022,0011044405/1,11044405, 614.25,Speedy Services (Speedy Hire),01840400,,BRREP General Maintenance,Angel Centre,M15HAP10001900,110069477
http://statistics.data.gov.uk/id/local-authority/29UP,Tonbridge & Malling Borough Council,6/1/2022,0011044406/1,11044406, 745.45,Speedy Services (Speedy Hire),01840400,,BRREP General Maintenance,Angel Centre,M15HAP10001900,110069477
http://statistics.data.gov.uk/id/local-authority/29UP,Tonbridge & Malling Borough Council,6/1/2022,0011044407/1,11044407, 400.00,Our Media Ltd,01639800,,Marketing,Tonbridge Castle Gatehouse,B40TGZ99944215,110069534
http://statistics.data.gov.uk/id/local-authority/29UP,Tonbridge & Malling Borough Council,6/1/2022,0011044408/3,11044408, 79.00,R C Brady (UK) Ltd,00131500,,Purchases,TIC Stock Account,K18AX000001002,
http://statistics.data.gov.uk/id/local-authority/29UP,Tonbridge & Malling Borough Council,6/1/2022,0011044409/3,11044409, 1791.63,South East England Councils (SEEC),01304900,,Subscriptions,Mayoral & Other Member Support,D29LX000047002,
http://statistics.data.gov.uk/id/local-authority/29UP,Tonbridge & Malling Borough Council,6/1/2022,0011044410/3,11044410, 156.00,Hadene Engineering Ltd,00041900,,Other Expenses,Homeless Accommodation,P03AX000009908,
http://statistics.data.gov.uk/id/local-authority/29UP,Tonbridge & Malling Borough Council,6/1/2022,0011044411/3,11044411, 35.80,Chubb Fire & Security Ltd,00115400,174605362,BRREP Servicing-IntruderAlarm,Leis Man Poult Wood Golf Centr,M15HEP20001939,
http://statistics.data.gov.uk/id/local-authority/29UP,Tonbridge & Malling Borough Council,6/1/2022,0011044412/3,11044412, 2936.93,KCS,00054200,,Electricity,Buildings,D21FEDD6021002,
http://statistics.data.gov.uk/id/local-authority/29UP,Tonbridge & Malling Borough Council,6/1/2022,0011044413/1,11044413, 127.72,Scottish Water Business Stream Ltd,01641100,,Estate Management Charge,Land Review,D40PS000020400,
http://statistics.data.gov.uk/id/local-authority/29UP,Tonbridge & Malling Borough Council,6/1/2022,0011044414/3,11044414, 60.00,Thomson Snell & Passmore,00101700,,Land & Buildings,Grnd Flr Unit 47 High St Tonbr,P03AZ000009901,
http://statistics.data.gov.uk/id/local-authority/29UP,Tonbridge & Malling Borough Council,6/1/2022,0011044415/1,11044415, 11188.56,Snodland Town Council,00092700,,Re-opening High Streets,Eco Dev & Reg Gen Bus Support,D52TDCV1948076,
http://statistics.data.gov.uk/id/local-authority/29UP,Tonbridge & Malling Borough Council,6/1/2022,0011044416/1,11044416, 10000.00,Sevenoaks District Council,00089300,,Business Growth Programme,Eco Dev & Reg Gen Bus Support,D52TD000048026,
http://statistics.data.gov.uk/id/local-authority/29UP,Tonbridge & Malling Borough Council,6/1/2022,0011044416/2,11044416, 3000.00,Sevenoaks District Council,00089300,,Economic Development Expenses,Eco Dev & Reg Gen Bus Support,D52TD000048050,
http://statistics.data.gov.uk/id/local-authority/29UP,Tonbridge & Malling Borough Council,6/1/2022,0011044417/1,11044417, 5.44,KCS,00054200,,Purchases,Licences - Fee Paying,H27SH000040101,110069379
http://statistics.data.gov.uk/id/local-authority/29UP,Tonbridge & Malling Borough Council,6/1/2022,0011044418/1,11044418, 5695.00,G Baker Roofing Ltd,01664400,522705274,BRREP General Maintenance,Angel Centre,M15HAP10001900,110069524
http://statistics.data.gov.uk/id/local-authority/29UP,Tonbridge & Malling Borough Council,6/1/2022,0011044419/1,11044419, 32700.00,G Baker Roofing Ltd,01664400,522705274,BRREP General Maintenance,Angel Centre,M15HAP10001900,110069525
http://statistics.data.gov.uk/id/local-authority/29UP,Tonbridge & Malling Borough Council,6/1/2022,0011044420/1,11044420, 1850.00,G Baker Roofing Ltd,01664400,522705274,BRREP General Maintenance,Angel Centre,M15HAP10001900,110069596
http://statistics.data.gov.uk/id/local-authority/29UP,Tonbridge & Malling Borough Council,6/1/2022,0011044421/1,11044421, 3750.00,G Baker Roofing Ltd,01664400,522705274,BRREP General Maintenance,Angel Centre,M15HAP10001900,110069595
http://statistics.data.gov.uk/id/local-authority/29UP,Tonbridge & Malling Borough Council,6/1/2022,0012008365/1,12008365, 63.96,CCS Media Ltd,00018000,,Purchases,Information Technology,D27KD000040101,410032196
http://statistics.data.gov.uk/id/local-authority/29UP,Tonbridge & Malling Borough Council,6/1/2022,0012008365/2,12008365, 2.00,CCS Media Ltd,00018000,,Delivery Expenses,Information Technology,D27KD000044069,410032196
http://statistics.data.gov.uk/id/local-authority/29UP,Tonbridge & Malling Borough Council,6/1/2022,0021037954/3,21037954, 10.83,B&Q/Screwfix Direct(TradeUKAccount),00141300,,Maintenance of Grounds,Haysden Country Park,B22LC000020402,
http://statistics.data.gov.uk/id/local-authority/29UP,Tonbridge & Malling Borough Council,6/1/2022,0021037955/10,21037955, 4577.19,Landscape Services Ltd,00057600,,Grounds Maintenance Contract,Cemetery,B26MP000050103,
http://statistics.data.gov.uk/id/local-authority/29UP,Tonbridge & Malling Borough Council,6/1/2022,0021037955/11,21037955, 216.11,Landscape Services Ltd,00057600,,Grounds Maintenance Contract,Churchyards St Peter & St Paul,B28MX000050103,
http://statistics.data.gov.uk/id/local-authority/29UP,Tonbridge & Malling Borough Council,6/1/2022,0021037955/12,21037955, 157.16,Landscape Services Ltd,00057600,,Grounds Maintenance Contract,Churchyards St Stephens,B28MY000050103,
http://statistics.data.gov.uk/id/local-authority/29UP,Tonbridge & Malling Borough Council,6/1/2022,0021037955/13,21037955, 173.71,Landscape Services Ltd,00057600,,Grounds Maintenance Contract,Grounds,D21FF000050103,
http://statistics.data.gov.uk/id/local-authority/29UP,Tonbridge & Malling Borough Council,6/1/2022,0021037955/14,21037955, 329.46,Landscape Services Ltd,00057600,,Maintenance of Grounds,Parking Off-Street,E10HA000020402,
http://statistics.data.gov.uk/id/local-authority/29UP,Tonbridge & Malling Borough Council,6/1/2022,0021037955/15,21037955, 1033.20,Landscape Services Ltd,00057600,,Maintenance of Grounds,Parking Off-Street,E10HAE00120402,
http://statistics.data.gov.uk/id/local-authority/29UP,Tonbridge & Malling Borough Council,6/1/2022,0021037955/16,21037955, 98.11,Landscape Services Ltd,00057600,,Maintenance of Grounds,Parking Off-Street,E10HAE00220402,
http://statistics.data.gov.uk/id/local-authority/29UP,Tonbridge & Malling Borough Council,6/1/2022,0021037955/17,21037955, 88.97,Landscape Services Ltd,00057600,,Maintenance of Grounds,Parking Off-Street,E10HAE00320402,
http://statistics.data.gov.uk/id/local-authority/29UP,Tonbridge & Malling Borough Council,6/1/2022,0021037955/18,21037955, 22.19,Landscape Services Ltd,00057600,,Maintenance of Grounds,Parking Off-Street,E10HAE00420402,
http://statistics.data.gov.uk/id/local-authority/29UP,Tonbridge & Malling Borough Council,6/1/2022,0021037955/19,21037955, 0.57,Landscape Services Ltd,00057600,,Maintenance of Grounds,Parking Off-Street,E10HAE00520402,
http://statistics.data.gov.uk/id/local-authority/29UP,Tonbridge & Malling Borough Council,6/1/2022,0021037955/20,21037955, 62.11,Landscape Services Ltd,00057600,,Maintenance of Grounds,Parking Off-Street,E10HAE00620402,
http://statistics.data.gov.uk/id/local-authority/29UP,Tonbridge & Malling Borough Council,6/1/2022,0021037955/21,21037955, 145.01,Landscape Services Ltd,00057600,,Maintenance of Grounds,Parking Off-Street,E10HAE01020402,
http://statistics.data.gov.uk/id/local-authority/29UP,Tonbridge & Malling Borough Council,6/1/2022,0021037955/22,21037955, 3.21,Landscape Services Ltd,00057600,,Maintenance of Grounds,Parking Off-Street,E10HAE01220402,
http://statistics.data.gov.uk/id/local-authority/29UP,Tonbridge & Malling Borough Council,6/1/2022,0021037955/23,21037955, 7.09,Landscape Services Ltd,00057600,,Maintenance of Grounds,Parking Off-Street,E10HAE01320402,
http://statistics.data.gov.uk/id/local-authority/29UP,Tonbridge & Malling Borough Council,6/1/2022,0021037955/24,21037955, 29.50,Landscape Services Ltd,00057600,,Maintenance of Grounds,Parking Off-Street,E10HAE01520402,
http://statistics.data.gov.uk/id/local-authority/29UP,Tonbridge & Malling Borough Council,6/1/2022,0021037955/25,21037955, 57.64,Landscape Services Ltd,00057600,,Maintenance of Grounds,Parking Off-Street,E10HAE01620402,
http://statistics.data.gov.uk/id/local-authority/29UP,Tonbridge & Malling Borough Council,6/1/2022,0021037955/26,21037955, 23.42,Landscape Services Ltd,00057600,,Maintenance of Grounds,Parking Off-Street,E10HAE01720402,
http://statistics.data.gov.uk/id/local-authority/29UP,Tonbridge & Malling Borough Council,6/1/2022,0021037955/27,21037955, 14.39,Landscape Services Ltd,00057600,,Maintenance of Grounds,Parking Off-Street,E10HAE02120402,
http://statistics.data.gov.uk/id/local-authority/29UP,Tonbridge & Malling Borough Council,6/1/2022,0021037955/28,21037955, 22.91,Landscape Services Ltd,00057600,,Maintenance of Grounds,Parking Off-Street,E10HAE02320402,
http://statistics.data.gov.uk/id/local-authority/29UP,Tonbridge & Malling Borough Council,6/1/2022,0021037955/29,21037955, 87.83,Landscape Services Ltd,00057600,,Maintenance of Grounds,Parking Off-Street,E10HAE02820402,
http://statistics.data.gov.uk/id/local-authority/29UP,Tonbridge & Malling Borough Council,6/1/2022,0021037955/3,21037955, 21497.43,Landscape Services Ltd,00057600,,Grounds Maintenance Contract,Sports Grounds,B13ET000050103,
http://statistics.data.gov.uk/id/local-authority/29UP,Tonbridge & Malling Borough Council,6/1/2022,0021037955/30,21037955, 23.78,Landscape Services Ltd,00057600,,Maintenance of Grounds,Parking Off-Street,E10HAE04020402,
http://statistics.data.gov.uk/id/local-authority/29UP,Tonbridge & Malling Borough Council,6/1/2022,0021037955/31,21037955, 78.42,Landscape Services Ltd,00057600,,Maintenance of Grounds,Parking Off-Street,E10HAE04520402,
http://statistics.data.gov.uk/id/local-authority/29UP,Tonbridge & Malling Borough Council,6/1/2022,0021037955/4,21037955, 7461.13,Landscape Services Ltd,00057600,,Grounds Maintenance Contract,Tonbridge Castle Grounds,B22LB000050103,
http://statistics.data.gov.uk/id/local-authority/29UP,Tonbridge & Malling Borough Council,6/1/2022,0021037955/5,21037955, 56.77,Landscape Services Ltd,00057600,,Trade Refuse Charges,Haysden Country Park,B22LC000044008,
http://statistics.data.gov.uk/id/local-authority/29UP,Tonbridge & Malling Borough Council,6/1/2022,0021037955/6,21037955, 487.02,Landscape Services Ltd,00057600,,Litter Collection,Haysden Country Park,B22LC000044061,
http://statistics.data.gov.uk/id/local-authority/29UP,Tonbridge & Malling Borough Council,6/1/2022,0021037955/7,21037955, 1674.08,Landscape Services Ltd,00057600,,Grounds Maintenance Contract,Haysden Country Park,B22LC000050103,
http://statistics.data.gov.uk/id/local-authority/29UP,Tonbridge & Malling Borough Council,6/1/2022,0021037955/8,21037955, 583.97,Landscape Services Ltd,00057600,,Grounds Maintenance Contract,Haysden Country Park,B22LC000050103,
http://statistics.data.gov.uk/id/local-authority/29UP,Tonbridge & Malling Borough Council,6/1/2022,0021037955/9,21037955, 12393.51,Landscape Services Ltd,00057600,,Grounds Maintenance Contract,Open Spaces & Amenity Areas,B22LE000050103,
http://statistics.data.gov.uk/id/local-authority/29UP,Tonbridge & Malling Borough Council,6/1/2022,0021037956/1,21037956, 683.00,Landscape Services Ltd,00057600,,Maintenance of Grounds,Sports Grounds,B13ET000020402,210056780
http://statistics.data.gov.uk/id/local-authority/29UP,Tonbridge & Malling Borough Council,6/1/2022,0021037957/3,21037957, 178.01,KCC - L.A.S.E.R Commercial Services ,00184300,,Electricity,Open Spaces & Amenity Areas,B22LE000021002,
http://statistics.data.gov.uk/id/local-authority/29UP,Tonbridge & Malling Borough Council,6/1/2022,0021037958/3,21037958, 49.96,REDACTED PERSONAL DATA,01562400,,Maintenance of Grounds,Sports Grounds,B13ET000020402,
http://statistics.data.gov.uk/id/local-authority/29UP,Tonbridge & Malling Borough Council,6/1/2022,0021037959/3,21037959, 20.40,REDACTED PERSONAL DATA,01562400,,Maintenance of Grounds,Sports Grounds,B13ET000020402,
http://statistics.data.gov.uk/id/local-authority/29UP,Tonbridge & Malling Borough Council,6/1/2022,0021037960/1,21037960, 150.00,Weddle and Co,00714900,,Maintenance of Play Equipment,Open Spaces & Amenity Areas,B22LE000020503,210056772
http://statistics.data.gov.uk/id/local-authority/29UP,Tonbridge & Malling Borough Council,6/1/2022,0021037961/1,21037961, 260.00,Weddle and Co,00714900,,Maintenance of Play Equipment,Open Spaces & Amenity Areas,B22LE000020503,210056787
http://statistics.data.gov.uk/id/local-authority/29UP,Tonbridge & Malling Borough Council,6/1/2022,0021037962/1,21037962, 3190.48,CSM Sport & Entertainment LLP,01850300,,Economic Dev Inititatives,Eco Dev & Reg Gen Bus Support,D52TD000047025,210056801
http://statistics.data.gov.uk/id/local-authority/29UP,Tonbridge & Malling Borough Council,6/1/2022,0021037964/1,21037964, 532.00,Continental Sports Ltd,00022000,,Initial Furniture & Equipment,Capital Renewals Leisure,P05KGBC0109906,210056704
http://statistics.data.gov.uk/id/local-authority/29UP,Tonbridge & Malling Borough Council,6/1/2022,0021037964/2,21037964, 25.00,Continental Sports Ltd,00022000,,Initial Furniture & Equipment,Capital Renewals Leisure,P05KGBC0109906,210056704
http://statistics.data.gov.uk/id/local-authority/29UP,Tonbridge & Malling Borough Council,6/1/2022,0021037965/1,21037965, 60.00,Mr Mark Williams,01184500,,Marketing,Youth Partnerships,B33PG000044215,210056775
http://statistics.data.gov.uk/id/local-authority/29UP,Tonbridge & Malling Borough Council,6/1/2022,0021037966/1,21037966, 245.00,Rhino Security,01749300,,Maintenance of Grounds,Haysden Country Park,B22LC000020402,210056777
http://statistics.data.gov.uk/id/local-authority/29UP,Tonbridge & Malling Borough Council,6/1/2022,0021037967/3,21037967, 26.81,B&Q/Screwfix Direct(TradeUKAccount),00141300,,Maintenance of Grounds,Haysden Country Park,B22LC000020402,
http://statistics.data.gov.uk/id/local-authority/29UP,Tonbridge & Malling Borough Council,6/1/2022,0021037968/1,21037968, 561.17,Landscape Services Ltd,00057600,,Grounds Maintenance Contract,Cemetery,B26MP000050103,
http://statistics.data.gov.uk/id/local-authority/29UP,Tonbridge & Malling Borough Council,6/1/2022,0022026600/1,22026600, 1500.00,Kent Housing,01503200,,Temporary Accommodation,Homelessness,C01AA000044051,
http://statistics.data.gov.uk/id/local-authority/29UP,Tonbridge & Malling Borough Council,6/1/2022,0022026663/1,22026663, 11772.55,Elite Complete Build LTD,01625900,,Other Expenses,Disabled Facilities Grant Mand,P03AC000009908,
http://statistics.data.gov.uk/id/local-authority/29UP,Tonbridge & Malling Borough Council,6/1/2022,0022026664/1,22026664, 1701.25,Town & Country Housing Group,01385400,,Other Expenses,Disabled Facilities Grant Mand,P03AC000009908,
http://statistics.data.gov.uk/id/local-authority/29UP,Tonbridge & Malling Borough Council,6/1/2022,0022026665/1,22026665, 6487.00,Ascendit Lifts Ltd,00446600,,Other Expenses,Disabled Facilities Grant Mand,P03AC000009908,
http://statistics.data.gov.uk/id/local-authority/29UP,Tonbridge & Malling Borough Council,6/1/2022,0022026666/1,22026666, 833.33,Town & Country Housing Group,01385400,,Other Expenses,Disabled Facilities Grant Mand,P03AC000009908,
http://statistics.data.gov.uk/id/local-authority/29UP,Tonbridge & Malling Borough Council,6/1/2022,0022026669/3,22026669, 377.23,British Gas Services LTD,01260000,,Electricity,Homelessness,C01AAMAUN21002,
http://statistics.data.gov.uk/id/local-authority/29UP,Tonbridge & Malling Borough Council,6/1/2022,0022026670/3,22026670, 825.00,G2 Recruitment Solutions,01786000,,Temporary Staff,Env Hlth & Hsg Sals&Overheads,D01AVDV0711300,
http://statistics.data.gov.uk/id/local-authority/29UP,Tonbridge & Malling Borough Council,6/1/2022,0022026671/3,22026671, 1175.30,G2 Recruitment Solutions,01786000,,Temporary Staff,Env Hlth & Hsg Sals&Overheads,D01AVDV0711300,
http://statistics.data.gov.uk/id/local-authority/29UP,Tonbridge & Malling Borough Council,6/1/2022,0022026676/3,22026676, 767.82,Vivid Resourcing,01773700,,Temporary Staff,Env Hlth & Hsg Sals&Overheads,D01AVDV0711300,
http://statistics.data.gov.uk/id/local-authority/29UP,Tonbridge & Malling Borough Council,6/1/2022,0022026676/4,22026676, 188.54,Vivid Resourcing,01773700,,Temporary Staff,Env Hlth & Hsg Sals&Overheads,D01AVDV0711300,
http://statistics.data.gov.uk/id/local-authority/29UP,Tonbridge & Malling Borough Council,6/1/2022,0022026677/1,22026677, 8400.00,CWB Property  Ltd,01726800,,Contribution from Other Bodies,Homelessness,C01AACV1995001,
http://statistics.data.gov.uk/id/local-authority/29UP,Tonbridge & Malling Borough Council,6/1/2022,0022026678/1,22026678, 1211.99,Maidstone Borough Council,01173700,,Council Tax,Homelessness,C01AAMAUN23002,
http://statistics.data.gov.uk/id/local-authority/29UP,Tonbridge & Malling Borough Council,6/1/2022,0022026679/1,22026679, 4650.00,Connells Residential Lettings,01668100,,Temporary Accommodation,Homelessness,C01AASYRI44051,
http://statistics.data.gov.uk/id/local-authority/29UP,Tonbridge & Malling Borough Council,6/1/2022,0022026680/3,22026680, 1173.64,Ward Security LTD,01490000,,Dog Warden,Street Scene,H23SD000044100,
http://statistics.data.gov.uk/id/local-authority/29UP,Tonbridge & Malling Borough Council,6/1/2022,0022026681/3,22026681, 490.00,Countrystyle Group,00835900,781981681,Collection of Card,Dry Recycling,H34SR000054008,
http://statistics.data.gov.uk/id/local-authority/29UP,Tonbridge & Malling Borough Council,6/1/2022,0022026682/1,22026682, 3200.00,Craemer UK LTD,01616400,,Initial Furniture & Equipment,Green Waste Bin Growth/Replace,P02BC000009906,220003213
http://statistics.data.gov.uk/id/local-authority/29UP,Tonbridge & Malling Borough Council,6/1/2022,0022026683/1,22026683, 1980.00,Craemer UK LTD,01616400,,Initial Furniture & Equipment,Green Waste Bin Growth/Replace,P02BC000009906,220003207
http://statistics.data.gov.uk/id/local-authority/29UP,Tonbridge & Malling Borough Council,6/1/2022,0022026684/1,22026684, 4760.00,Craemer UK LTD,01616400,,Initial Furniture & Equipment,Refuse Bins Growth/Replacement,P02DA000009906,220003229
http://statistics.data.gov.uk/id/local-authority/29UP,Tonbridge & Malling Borough Council,6/1/2022,0022026685/1,22026685, 4645.60,Countrystyle Group,00835900,781981681,Plastic Recycling,Dry Recycling,H34SR000054019,
http://statistics.data.gov.uk/id/local-authority/29UP,Tonbridge & Malling Borough Council,6/1/2022,0022026686/1,22026686, 420.00,Lucy and Martin Recycling LTD,01694200,,General Maintenance,Dry Recycling,H34SR000020301,
http://statistics.data.gov.uk/id/local-authority/29UP,Tonbridge & Malling Borough Council,6/1/2022,0022026687/1,22026687, 1259.85,Wybone Ltd,00815800,,Purchases,Street Scene,H23SD000040101,220003231
http://statistics.data.gov.uk/id/local-authority/29UP,Tonbridge & Malling Borough Council,6/1/2022,0022026687/2,22026687, 16.09,Wybone Ltd,00815800,,Purchases,Street Scene,H23SD000040101,220003231
http://statistics.data.gov.uk/id/local-authority/29UP,Tonbridge & Malling Borough Council,6/1/2022,0022026687/3,22026687, 2774.85,Wybone Ltd,00815800,,Purchases,Street Scene,H23SD000040101,220003231
http://statistics.data.gov.uk/id/local-authority/29UP,Tonbridge & Malling Borough Council,6/1/2022,0022026687/4,22026687, 749.85,Wybone Ltd,00815800,,Purchases,Street Scene,H23SD000040101,220003231
http://statistics.data.gov.uk/id/local-authority/29UP,Tonbridge & Malling Borough Council,6/1/2022,0022026688/1,22026688, 9527.14,Dover District Council,00028700,,Choice Based Lettings,Housing Register,C12FC000054021,220003235
http://statistics.data.gov.uk/id/local-authority/29UP,Tonbridge & Malling Borough Council,6/1/2022,0022026689/1,22026689, 1250.00,Dover District Council,00028700,,Homelessness Reduction Initiat,Homelessness,C01AA000048019,220003215
http://statistics.data.gov.uk/id/local-authority/29UP,Tonbridge & Malling Borough Council,6/1/2022,0022026690/1,22026690, 1221.00,G2 Recruitment Solutions,01786000,,Temporary Staff,Env Hlth & Hsg Sals&Overheads,D01AVDV0711300,
http://statistics.data.gov.uk/id/local-authority/29UP,Tonbridge & Malling Borough Council,6/1/2022,0022026691/1,22026691, 1225.67,G2 Recruitment Solutions,01786000,,Temporary Staff,Env Hlth & Hsg Sals&Overheads,D01AVDV0711300,
http://statistics.data.gov.uk/id/local-authority/29UP,Tonbridge & Malling Borough Council,6/1/2022,0022026692/1,22026692, 1239.50,Vivid Resourcing,01773700,,Temporary Staff,Env Hlth & Hsg Sals&Overheads,D01AVDV0711300,
http://statistics.data.gov.uk/id/local-authority/29UP,Tonbridge & Malling Borough Council,6/1/2022,0031018681/1,31018681, 695.00,Archway Highway Services Ltd,01398000,,Car Parking Action Plan,Parking On-Street,E10HD000020801,310042798
http://statistics.data.gov.uk/id/local-authority/29UP,Tonbridge & Malling Borough Council,6/1/2022,0031018681/2,31018681, 279.00,Archway Highway Services Ltd,01398000,,Car Parking Action Plan,Parking On-Street,E10HD000020801,310042798
http://statistics.data.gov.uk/id/local-authority/29UP,Tonbridge & Malling Borough Council,6/1/2022,0032009571/3,32009571, 2590.00,G2 Recruitment Solutions,01786000,,Temporary Staff,Planning Sals&Overheads,D01AJDJ0111300,
http://statistics.data.gov.uk/id/local-authority/29UP,Tonbridge & Malling Borough Council,6/1/2022,0032009572/3,32009572, 3224.82,G2 Recruitment Solutions,01786000,,Temporary Staff,Planning Sals&Overheads,D01AJDJ0111300,
http://statistics.data.gov.uk/id/local-authority/29UP,Tonbridge & Malling Borough Council,6/1/2022,0032009573/3,32009573, 2479.00,G2 Recruitment Solutions,01786000,,Temporary Staff,Planning Sals&Overheads,D01AJDJ0111300,
http://statistics.data.gov.uk/id/local-authority/29UP,Tonbridge & Malling Borough Council,6/1/2022,0032009574/3,32009574, 1702.00,Vivid Resourcing,01773700,,Temporary Staff,Planning Sals&Overheads,D01AJDJ0111300,
http://statistics.data.gov.uk/id/local-authority/29UP,Tonbridge & Malling Borough Council,6/1/2022,0032009575/3,32009575, 1932.00,Vivid Resourcing,01773700,,Temporary Staff,Planning Sals&Overheads,D01AJDJ0111300,
http://statistics.data.gov.uk/id/local-authority/29UP,Tonbridge & Malling Borough Council,6/1/2022,0032009578/1,32009578, 2440.08,CBA,01844700,,Development of Local Plan,Development of Local Plan,A01AE000044023,320003411
http://statistics.data.gov.uk/id/local-authority/29UP,Tonbridge & Malling Borough Council,6/1/2022,0032009579/1,32009579, 9080.00,DLP Planning Limited,01800800,,Application & Appeals,Development Management,A01AB000044194,320003415
http://statistics.data.gov.uk/id/local-authority/29UP,Tonbridge & Malling Borough Council,6/1/2022,0032009579/2,32009579, 544.80,DLP Planning Limited,01800800,,Application & Appeals,Development Management,A01AB000044194,320003415
http://statistics.data.gov.uk/id/local-authority/29UP,Tonbridge & Malling Borough Council,6/1/2022,0032009580/1,32009580, 289.17,KM Media Group Ltd,00053900,,Advertising General,Development Management,A01ABZ99944216,320003409
http://statistics.data.gov.uk/id/local-authority/29UP,Tonbridge & Malling Borough Council,6/1/2022,0032009583/1,32009583, 9161.00,Hadlow Parish Council,00041400,,Payments,S106 - Commuted Sums,M04AD000001001,
http://statistics.data.gov.uk/id/local-authority/29UP,Tonbridge & Malling Borough Council,6/1/2022,0032009584/1,32009584, 3430.00,G2 Recruitment Solutions,01786000,,Temporary Staff,Planning Sals&Overheads,D01AJDJ0111300,
http://statistics.data.gov.uk/id/local-authority/29UP,Tonbridge & Malling Borough Council,6/1/2022,0032009585/1,32009585, 3058.68,G2 Recruitment Solutions,01786000,,Temporary Staff,Planning Sals&Overheads,D01AJDJ0111300,
http://statistics.data.gov.uk/id/local-authority/29UP,Tonbridge & Malling Borough Council,6/1/2022,0032009586/1,32009586, 1702.00,Vivid Resourcing,01773700,,Temporary Staff,Planning Sals&Overheads,D01AJDJ0111300,
http://statistics.data.gov.uk/id/local-authority/29UP,Tonbridge & Malling Borough Council,6/1/2022,0032009587/1,32009587, 1521.50,Arc4,01652100,,Development of Local Plan,Development of Local Plan,A01AE000044023,310042779
http://statistics.data.gov.uk/id/local-authority/29UP,Tonbridge & Malling Borough Council,6/1/2022,0041034363/1,41034363, 19.15,Amazon EU SARL,01738400,,Stationery,Finance Sals&Overheads,D01AFDF1143003,410032195
http://statistics.data.gov.uk/id/local-authority/29UP,Tonbridge & Malling Borough Council,6/1/2022,0041034364/1,41034364, 1071.46,Morgan Hunt UK Ltd,01086900,,Temporary Staff,Finance Sals&Overheads,D01AFDF1111300,
http://statistics.data.gov.uk/id/local-authority/29UP,Tonbridge & Malling Borough Council,6/1/2022,0041034365/1,41034365, 840.00,Morgan Hunt UK Ltd,01086900,,Temporary Staff,Finance Sals&Overheads,D01AFDF1111300,
http://statistics.data.gov.uk/id/local-authority/29UP,Tonbridge & Malling Borough Council,6/1/2022,0041034366/1,41034366, 1360.80,Rundle & Co Ltd,00087200,,Bailiffs Commission,Local Revenue & NNDR Collect,D41QA000044075,
http://statistics.data.gov.uk/id/local-authority/29UP,Tonbridge & Malling Borough Council,6/1/2022,0041034367/1,41034367, 1750.00,NEC Software Solutions UK Ltd,01073900,202159745,Other Expenses,Housing Benefits,C05CL000048010,410032198
http://statistics.data.gov.uk/id/local-authority/29UP,Tonbridge & Malling Borough Council,6/1/2022,0041034368/1,41034368, 20.00,Computershare Voucher Services,01212600,,Childcare Scheme,Finance Sals&Overheads,D01AFDF0911136,
http://statistics.data.gov.uk/id/local-authority/29UP,Tonbridge & Malling Borough Council,6/1/2022,0041034368/2,41034368, 1.40,Computershare Voucher Services,01212600,,National Insurance,Finance Sals&Overheads,D01AFDF0911191,
http://statistics.data.gov.uk/id/local-authority/29UP,Tonbridge & Malling Borough Council,6/1/2022,0041034368/3,41034368, 50.00,Computershare Voucher Services,01212600,,Childcare Scheme,Legal Sals&Overheads,D01ARDR0011136,
http://statistics.data.gov.uk/id/local-authority/29UP,Tonbridge & Malling Borough Council,6/1/2022,0041034368/4,41034368, 3.50,Computershare Voucher Services,01212600,,National Insurance,Legal Sals&Overheads,D01ARDR0011191,
http://statistics.data.gov.uk/id/local-authority/29UP,Tonbridge & Malling Borough Council,6/1/2022,0041034368/5,41034368, 20.00,Computershare Voucher Services,01212600,,Childcare Scheme,Env Hlth & Hsg Sals&Overheads,D01AVDV0211136,
http://statistics.data.gov.uk/id/local-authority/29UP,Tonbridge & Malling Borough Council,6/1/2022,0041034368/6,41034368, 1.40,Computershare Voucher Services,01212600,,National Insurance,Env Hlth & Hsg Sals&Overheads,D01AVDV0211191,
http://statistics.data.gov.uk/id/local-authority/29UP,Tonbridge & Malling Borough Council,6/1/2022,0041034368/7,41034368, 243.00,Computershare Voucher Services,01212600,,Childcare Scheme,Env Hlth & Hsg Sals&Overheads,D01AVDV0711136,
http://statistics.data.gov.uk/id/local-authority/29UP,Tonbridge & Malling Borough Council,6/1/2022,0041034368/8,41034368, 17.01,Computershare Voucher Services,01212600,,National Insurance,Env Hlth & Hsg Sals&Overheads,D01AVDV0711191,
http://statistics.data.gov.uk/id/local-authority/29UP,Tonbridge & Malling Borough Council,6/1/2022,0041034369/1,41034369, 1043.63,Morgan Hunt UK Ltd,01086900,,Temporary Staff,Finance Sals&Overheads,D01AFDF1111300,
http://statistics.data.gov.uk/id/local-authority/29UP,Tonbridge & Malling Borough Council,6/1/2022,0041034370/1,41034370, 971.25,Morgan Hunt UK Ltd,01086900,,Temporary Staff,Finance Sals&Overheads,D01AFDF1111300,
http://statistics.data.gov.uk/id/local-authority/29UP,Tonbridge & Malling Borough Council,6/8/2022,0011044422/1,11044422, 4995.00,Frontline Data,01375000,,BRREP Licence Fees - app list,Kings Hill Offices - Ext Areas,M15KAP20001977,110069597
http://statistics.data.gov.uk/id/local-authority/29UP,Tonbridge & Malling Borough Council,6/8/2022,0011044423/1,11044423, 990.00,Comfort Controls  (Service) Limited,01226700,,BRREP BMS System Mntce/Upgrade,Tonbridge Swimming Pool,M15HBP20001912,110069340
http://statistics.data.gov.uk/id/local-authority/29UP,Tonbridge & Malling Borough Council,6/8/2022,0011044424/1,11044424, 35.00,East Sussex Fire Ltd,01843100,,Repairs & Mtce to Buildings,Homelessness,C01AATNHS20101,110069585
http://statistics.data.gov.uk/id/local-authority/29UP,Tonbridge & Malling Borough Council,6/8/2022,0011044425/1,11044425, 575.00,IWS Water Hygiene,01392400,,BRREP Water Softener,Tonbridge Swimming Pool,M15HBP20001917,110069553
http://statistics.data.gov.uk/id/local-authority/29UP,Tonbridge & Malling Borough Council,6/8/2022,0011044426/1,11044426, 110.00,Southern Care Maintenance,01282600,,BRREP Servicing - Diasbled Acc,Tonbridge Castle / CAB,M15KFP20001981,110069126
http://statistics.data.gov.uk/id/local-authority/29UP,Tonbridge & Malling Borough Council,6/8/2022,0011044427/1,11044427, 350.00,G C Industrial Heating Services,00578100,,BRREP Servicing - Heating Syst,Tonbridge Farm Pavillion,M15HGP20001934,110069485
http://statistics.data.gov.uk/id/local-authority/29UP,Tonbridge & Malling Borough Council,6/8/2022,0012008366/1,12008366, 2707.20,Phoenix Software Ltd,00077400,755349015,Software Hire & Support,Information Technology,D27KD000044059,410032182
http://statistics.data.gov.uk/id/local-authority/29UP,Tonbridge & Malling Borough Council,6/8/2022,0012008366/2,12008366, 13634.40,Phoenix Software Ltd,00077400,755349015,Software Hire & Support,Information Technology,D27KD000044059,410032182
http://statistics.data.gov.uk/id/local-authority/29UP,Tonbridge & Malling Borough Council,6/8/2022,0012008366/3,12008366, 18615.60,Phoenix Software Ltd,00077400,755349015,Software Hire & Support,Information Technology,D27KD000044059,410032182
http://statistics.data.gov.uk/id/local-authority/29UP,Tonbridge & Malling Borough Council,6/8/2022,0012008366/4,12008366, 10.00,Phoenix Software Ltd,00077400,755349015,Delivery Expenses,Information Technology,D27KD000044069,410032182
http://statistics.data.gov.uk/id/local-authority/29UP,Tonbridge & Malling Borough Council,6/8/2022,0012008367/1,12008367, 98.00,Sectigo Limited - European Office,01214500,,Software Hire & Support,Information Technology,D27KD000044059,410032197
http://statistics.data.gov.uk/id/local-authority/29UP,Tonbridge & Malling Borough Council,6/8/2022,0012008368/1,12008368, 1840.00,Loop1 UK Limited,01746700,,Software Hire & Support,Information Technology,D27KD000044059,410032203
http://statistics.data.gov.uk/id/local-authority/29UP,Tonbridge & Malling Borough Council,6/8/2022,0012008369/1,12008369, 2226.39,NTT Cloud Communications UK Ltd,01794600,,Software Hire & Support,Information Technology,D27KD000044059,
http://statistics.data.gov.uk/id/local-authority/29UP,Tonbridge & Malling Borough Council,6/8/2022,0012008370/1,12008370, 20381.10,Phoenix Software Ltd,00077400,755349015,Software Hire & Support,Information Technology,D27KD000044059,
http://statistics.data.gov.uk/id/local-authority/29UP,Tonbridge & Malling Borough Council,6/8/2022,0012008371/1,12008371, 1556.35,The Oyster Partnership,01196400,,Temporary Staff,Finance Sals&Overheads,D01AFDF1111300,
http://statistics.data.gov.uk/id/local-authority/29UP,Tonbridge & Malling Borough Council,6/8/2022,0021037969/1,21037969, 487.50,Premier Education Shirly Sports Ltd,01816200,,Partnership Fees,Youth Partnerships,B33PG000044048,210056788
http://statistics.data.gov.uk/id/local-authority/29UP,Tonbridge & Malling Borough Council,6/8/2022,0021037970/1,21037970, 51.99,Lamberhurst Engineering Ltd,01306400,,Protective Clothing,Patrolling,B22LF000042001,210056810
http://statistics.data.gov.uk/id/local-authority/29UP,Tonbridge & Malling Borough Council,6/8/2022,0022026674/1,22026674, 8500.00,Town & Country Housing Group,01385400,,Countywide DFG Project,Private Sector Housing Renewal,C03BD000044031,
http://statistics.data.gov.uk/id/local-authority/29UP,Tonbridge & Malling Borough Council,6/8/2022,0022026675/1,22026675, 9196.30,Town & Country Housing Group,01385400,,Countywide DFG Project,Private Sector Housing Renewal,C03BD000044031,
http://statistics.data.gov.uk/id/local-authority/29UP,Tonbridge & Malling Borough Council,6/8/2022,0022026693/1,22026693, 7964.32,MCL  Mechanical Handling Ltd,00064100,,Other Expenses,Disabled Facilities Grant Mand,P03AC000009908,
http://statistics.data.gov.uk/id/local-authority/29UP,Tonbridge & Malling Borough Council,6/8/2022,0022026694/1,22026694, 1146.85,Town & Country Housing Group,01385400,,Other Expenses,Disabled Facilities Grant Mand,P03AC000009908,
http://statistics.data.gov.uk/id/local-authority/29UP,Tonbridge & Malling Borough Council,6/8/2022,0022026695/1,22026695, 13860.00,Craemer UK LTD,01616400,,Initial Furniture & Equipment,Green Waste Bin Growth/Replace,P02BC000009906,220003228
http://statistics.data.gov.uk/id/local-authority/29UP,Tonbridge & Malling Borough Council,6/8/2022,0022026696/3,22026696, 800.00,Green Recycling LTD,01563000,,Paper Recycling,Dry Recycling,H34SR000054024,
http://statistics.data.gov.uk/id/local-authority/29UP,Tonbridge & Malling Borough Council,6/8/2022,0022026697/1,22026697, 6.00,Peabody South East LTD,01680900,,Other Expenses,Disabled Facilities Grant Mand,P03AC000009908,
http://statistics.data.gov.uk/id/local-authority/29UP,Tonbridge & Malling Borough Council,6/8/2022,0022026698/1,22026698, 26.18,Maidstone Borough Council,01173700,,Council Tax,Homelessness,C01AAMAUN23002,
http://statistics.data.gov.uk/id/local-authority/29UP,Tonbridge & Malling Borough Council,6/8/2022,0022026699/1,22026699, 3518.50,House to Home Lettings Ltd ,01647600,,Temporary Accommodation,Homelessness,C01AA000044051,
http://statistics.data.gov.uk/id/local-authority/29UP,Tonbridge & Malling Borough Council,6/8/2022,0022026700/1,22026700, 970.00,Keith Rawlings,01358700,,Temporary Accommodation,Homelessness,C01AA000044051,
http://statistics.data.gov.uk/id/local-authority/29UP,Tonbridge & Malling Borough Council,6/8/2022,0022026701/1,22026701, 167.90,E.ON - Next,01790900,,Electricity,Homelessness,C01AATNPR21002,
http://statistics.data.gov.uk/id/local-authority/29UP,Tonbridge & Malling Borough Council,6/8/2022,0022026702/1,22026702, 1550.00,Kent Housing,01503200,,Temporary Accommodation,Homelessness,C01AA000044051,
http://statistics.data.gov.uk/id/local-authority/29UP,Tonbridge & Malling Borough Council,6/8/2022,0022026703/1,22026703, 961.00,Kent Property Services,01722500,,Temporary Accommodation,Homelessness,C01AA000044051,
http://statistics.data.gov.uk/id/local-authority/29UP,Tonbridge & Malling Borough Council,6/8/2022,0022026705/1,22026705, 40856.00,Paramount Independent Property Suppliers,01595300,,Temporary Accommodation,Homelessness,C01AA000044051,
http://statistics.data.gov.uk/id/local-authority/29UP,Tonbridge & Malling Borough Council,6/8/2022,0022026706/1,22026706, 65.88,Peoplesafe -  Skyguard Ltd,01779900,,Health General,Env Hlth & Hsg Sals&Overheads,D01AV000044049,
http://statistics.data.gov.uk/id/local-authority/29UP,Tonbridge & Malling Borough Council,6/8/2022,0022026707/1,22026707, 3782.00,Simply Rented Ltd ,01691400,,Temporary Accommodation,Homelessness,C01AA000044051,
http://statistics.data.gov.uk/id/local-authority/29UP,Tonbridge & Malling Borough Council,6/8/2022,0022026708/1,22026708, 1550.00,Smart Property Professionals,01815100,,Temporary Accommodation,Homelessness,C01AA000044051,
http://statistics.data.gov.uk/id/local-authority/29UP,Tonbridge & Malling Borough Council,6/8/2022,0022026709/1,22026709, 28907.50,Social & Community Care,01768400,,Temporary Accommodation,Homelessness,C01AA000044051,
http://statistics.data.gov.uk/id/local-authority/29UP,Tonbridge & Malling Borough Council,6/8/2022,0022026710/1,22026710, 2226.57,The Care Group-Housing & Care Trust,01699600,,Temporary Accommodation,Homelessness,C01AA000044051,
http://statistics.data.gov.uk/id/local-authority/29UP,Tonbridge & Malling Borough Council,6/8/2022,0022026711/1,22026711, 6975.00,SPA CAFFE LIMITED,00127100,,Temporary Accommodation,Homelessness,C01AA000044051,
http://statistics.data.gov.uk/id/local-authority/29UP,Tonbridge & Malling Borough Council,6/8/2022,0022026712/1,22026712, 8075.00,Kent Accommodation Ltd,01722000,,Temporary Accommodation,Homelessness,C01AA000044051,
http://statistics.data.gov.uk/id/local-authority/29UP,Tonbridge & Malling Borough Council,6/8/2022,0022026713/1,22026713, 8494.00,Premier Property Providers,01785400,,Temporary Accommodation,Homelessness,C01AA000044051,
http://statistics.data.gov.uk/id/local-authority/29UP,Tonbridge & Malling Borough Council,6/8/2022,0022026714/1,22026714, 8622.00,Less Homeless Ltd,01489300,,Temporary Accommodation,Homelessness,C01AA000044051,
http://statistics.data.gov.uk/id/local-authority/29UP,Tonbridge & Malling Borough Council,6/8/2022,0022026715/1,22026715, 10044.00,Simon Niblett Lettings,00072600,,Temporary Accommodation,Homelessness,C01AA000044051,
http://statistics.data.gov.uk/id/local-authority/29UP,Tonbridge & Malling Borough Council,6/8/2022,0022026716/1,22026716, 3410.00,Simon Niblett Lettings,00072600,,Temporary Accommodation,Homelessness,C01AA000044051,
http://statistics.data.gov.uk/id/local-authority/29UP,Tonbridge & Malling Borough Council,6/8/2022,0022026717/1,22026717, 1596.17,Clarion Housing,01078200,,Contribution from Other Bodies,Homelessness,C01AACV1995001,
http://statistics.data.gov.uk/id/local-authority/29UP,Tonbridge & Malling Borough Council,6/8/2022,0022026718/1,22026718, 5744.88,Town & Country Housing Group,01385400,,Countywide DFG Project,Private Sector Housing Renewal,C03BD000044031,
http://statistics.data.gov.uk/id/local-authority/29UP,Tonbridge & Malling Borough Council,6/8/2022,0022026719/1,22026719, 16085.65,Town & Country Housing Group,01385400,,Countywide DFG Project,Private Sector Housing Renewal,C03BD000044031,
http://statistics.data.gov.uk/id/local-authority/29UP,Tonbridge & Malling Borough Council,6/8/2022,0031018685/1,31018685, 5570.00,Marston,01485000,,Adjudication & Enforcement Ser,Parking Off-Street,E10HA000044230,
http://statistics.data.gov.uk/id/local-authority/29UP,Tonbridge & Malling Borough Council,6/8/2022,0031018686/1,31018686, 1674.99,CDER Group,01773300,,Adjudication & Enforcement Ser,Parking Off-Street,E10HA000044230,
http://statistics.data.gov.uk/id/local-authority/29UP,Tonbridge & Malling Borough Council,6/8/2022,0031018687/1,31018687, 164.00,Flowbird Smart City UK Limited,00898700,,Premises Repairs & Maintenance,Parking Off-Street,E10HA000020601,310042830
http://statistics.data.gov.uk/id/local-authority/29UP,Tonbridge & Malling Borough Council,6/8/2022,0031018687/2,31018687, 33.00,Flowbird Smart City UK Limited,00898700,,Premises Repairs & Maintenance,Parking Off-Street,E10HA000020601,310042830
http://statistics.data.gov.uk/id/local-authority/29UP,Tonbridge & Malling Borough Council,6/8/2022,0031018688/1,31018688, 14.72,KelticLimited,01000400,,Uniforms,Parking Off-Street,E10HA000042002,310042809
http://statistics.data.gov.uk/id/local-authority/29UP,Tonbridge & Malling Borough Council,6/8/2022,0031018688/10,31018688, 35.98,KelticLimited,01000400,,Uniforms,Parking Off-Street,E10HA000042002,310042809
http://statistics.data.gov.uk/id/local-authority/29UP,Tonbridge & Malling Borough Council,6/8/2022,0031018688/11,31018688, 3.18,KelticLimited,01000400,,Uniforms,Parking Off-Street,E10HA000042002,310042809
http://statistics.data.gov.uk/id/local-authority/29UP,Tonbridge & Malling Borough Council,6/8/2022,0031018688/12,31018688, 35.98,KelticLimited,01000400,,Uniforms,Parking Off-Street,E10HA000042002,310042809
http://statistics.data.gov.uk/id/local-authority/29UP,Tonbridge & Malling Borough Council,6/8/2022,0031018688/13,31018688, 53.97,KelticLimited,01000400,,Uniforms,Parking On-Street,E10HD000042002,310042809
http://statistics.data.gov.uk/id/local-authority/29UP,Tonbridge & Malling Borough Council,6/8/2022,0031018688/14,31018688, 26.85,KelticLimited,01000400,,Uniforms,Parking On-Street,E10HD000042002,310042809
http://statistics.data.gov.uk/id/local-authority/29UP,Tonbridge & Malling Borough Council,6/8/2022,0031018688/15,31018688, 26.85,KelticLimited,01000400,,Uniforms,Parking On-Street,E10HD000042002,310042809
http://statistics.data.gov.uk/id/local-authority/29UP,Tonbridge & Malling Borough Council,6/8/2022,0031018688/16,31018688, 26.85,KelticLimited,01000400,,Uniforms,Parking On-Street,E10HD000042002,310042809
http://statistics.data.gov.uk/id/local-authority/29UP,Tonbridge & Malling Borough Council,6/8/2022,0031018688/17,31018688, 20.34,KelticLimited,01000400,,Uniforms,Parking On-Street,E10HD000042002,310042809
http://statistics.data.gov.uk/id/local-authority/29UP,Tonbridge & Malling Borough Council,6/8/2022,0031018688/18,31018688, 4.77,KelticLimited,01000400,,Uniforms,Parking On-Street,E10HD000042002,310042809
http://statistics.data.gov.uk/id/local-authority/29UP,Tonbridge & Malling Borough Council,6/8/2022,0031018688/19,31018688, 53.97,KelticLimited,01000400,,Uniforms,Parking On-Street,E10HD000042002,310042809
http://statistics.data.gov.uk/id/local-authority/29UP,Tonbridge & Malling Borough Council,6/8/2022,0031018688/2,31018688, 17.90,KelticLimited,01000400,,Uniforms,Parking Off-Street,E10HA000042002,310042809
http://statistics.data.gov.uk/id/local-authority/29UP,Tonbridge & Malling Borough Council,6/8/2022,0031018688/20,31018688, 53.97,KelticLimited,01000400,,Uniforms,Parking On-Street,E10HD000042002,310042809
http://statistics.data.gov.uk/id/local-authority/29UP,Tonbridge & Malling Borough Council,6/8/2022,0031018688/21,31018688, 26.34,KelticLimited,01000400,,Uniforms,Parking On-Street,E10HD000042002,310042809
http://statistics.data.gov.uk/id/local-authority/29UP,Tonbridge & Malling Borough Council,6/8/2022,0031018688/22,31018688, 74.25,KelticLimited,01000400,,Uniforms,Parking On-Street,E10HD000042002,310042809
http://statistics.data.gov.uk/id/local-authority/29UP,Tonbridge & Malling Borough Council,6/8/2022,0031018688/23,31018688, 22.08,KelticLimited,01000400,,Uniforms,Parking On-Street,E10HD000042002,310042809
http://statistics.data.gov.uk/id/local-authority/29UP,Tonbridge & Malling Borough Council,6/8/2022,0031018688/3,31018688, 9.95,KelticLimited,01000400,,Uniforms,Parking Off-Street,E10HA000042002,310042809
http://statistics.data.gov.uk/id/local-authority/29UP,Tonbridge & Malling Borough Council,6/8/2022,0031018688/4,31018688, 17.56,KelticLimited,01000400,,Uniforms,Parking Off-Street,E10HA000042002,310042809
http://statistics.data.gov.uk/id/local-authority/29UP,Tonbridge & Malling Borough Council,6/8/2022,0031018688/5,31018688, 49.50,KelticLimited,01000400,,Uniforms,Parking Off-Street,E10HA000042002,310042809
http://statistics.data.gov.uk/id/local-authority/29UP,Tonbridge & Malling Borough Council,6/8/2022,0031018688/6,31018688, 35.98,KelticLimited,01000400,,Uniforms,Parking Off-Street,E10HA000042002,310042809
http://statistics.data.gov.uk/id/local-authority/29UP,Tonbridge & Malling Borough Council,6/8/2022,0031018688/7,31018688, 13.56,KelticLimited,01000400,,Uniforms,Parking Off-Street,E10HA000042002,310042809
http://statistics.data.gov.uk/id/local-authority/29UP,Tonbridge & Malling Borough Council,6/8/2022,0031018688/8,31018688, 17.90,KelticLimited,01000400,,Uniforms,Parking Off-Street,E10HA000042002,310042809
http://statistics.data.gov.uk/id/local-authority/29UP,Tonbridge & Malling Borough Council,6/8/2022,0031018688/9,31018688, 17.90,KelticLimited,01000400,,Uniforms,Parking Off-Street,E10HA000042002,310042809
http://statistics.data.gov.uk/id/local-authority/29UP,Tonbridge & Malling Borough Council,6/8/2022,0031018689/1,31018689, 3.98,KelticLimited,01000400,,Uniforms,Parking Off-Street,E10HA000042002,310042814
http://statistics.data.gov.uk/id/local-authority/29UP,Tonbridge & Malling Borough Council,6/8/2022,0031018689/10,31018689, 35.97,KelticLimited,01000400,,Uniforms,Parking On-Street,E10HD000042002,310042814
http://statistics.data.gov.uk/id/local-authority/29UP,Tonbridge & Malling Borough Council,6/8/2022,0031018689/11,31018689, 52.77,KelticLimited,01000400,,Uniforms,Parking On-Street,E10HD000042002,310042814
http://statistics.data.gov.uk/id/local-authority/29UP,Tonbridge & Malling Borough Council,6/8/2022,0031018689/12,31018689, 5.97,KelticLimited,01000400,,Uniforms,Parking On-Street,E10HD000042002,310042814
http://statistics.data.gov.uk/id/local-authority/29UP,Tonbridge & Malling Borough Council,6/8/2022,0031018689/13,31018689, 53.97,KelticLimited,01000400,,Uniforms,Parking On-Street,E10HD000042002,310042814
http://statistics.data.gov.uk/id/local-authority/29UP,Tonbridge & Malling Borough Council,6/8/2022,0031018689/14,31018689, 39.54,KelticLimited,01000400,,Uniforms,Parking On-Street,E10HD000042002,310042814
http://statistics.data.gov.uk/id/local-authority/29UP,Tonbridge & Malling Borough Council,6/8/2022,0031018689/15,31018689, 26.85,KelticLimited,01000400,,Uniforms,Parking On-Street,E10HD000042002,310042814
http://statistics.data.gov.uk/id/local-authority/29UP,Tonbridge & Malling Borough Council,6/8/2022,0031018689/2,31018689, 26.36,KelticLimited,01000400,,Uniforms,Parking Off-Street,E10HA000042002,310042814
http://statistics.data.gov.uk/id/local-authority/29UP,Tonbridge & Malling Borough Council,6/8/2022,0031018689/3,31018689, 17.90,KelticLimited,01000400,,Uniforms,Parking Off-Street,E10HA000042002,310042814
http://statistics.data.gov.uk/id/local-authority/29UP,Tonbridge & Malling Borough Council,6/8/2022,0031018689/4,31018689, 35.98,KelticLimited,01000400,,Uniforms,Parking Off-Street,E10HA000042002,310042814
http://statistics.data.gov.uk/id/local-authority/29UP,Tonbridge & Malling Borough Council,6/8/2022,0031018689/5,31018689, 55.60,KelticLimited,01000400,,Uniforms,Parking Off-Street,E10HA000042002,310042814
http://statistics.data.gov.uk/id/local-authority/29UP,Tonbridge & Malling Borough Council,6/8/2022,0031018689/6,31018689, 35.18,KelticLimited,01000400,,Uniforms,Parking Off-Street,E10HA000042002,310042814
http://statistics.data.gov.uk/id/local-authority/29UP,Tonbridge & Malling Borough Council,6/8/2022,0031018689/7,31018689, 23.58,KelticLimited,01000400,,Uniforms,Parking Off-Street,E10HA000042002,310042814
http://statistics.data.gov.uk/id/local-authority/29UP,Tonbridge & Malling Borough Council,6/8/2022,0031018689/8,31018689, 23.98,KelticLimited,01000400,,Uniforms,Parking Off-Street,E10HA000042002,310042814
http://statistics.data.gov.uk/id/local-authority/29UP,Tonbridge & Malling Borough Council,6/8/2022,0031018689/9,31018689, 35.37,KelticLimited,01000400,,Uniforms,Parking On-Street,E10HD000042002,310042814
http://statistics.data.gov.uk/id/local-authority/29UP,Tonbridge & Malling Borough Council,6/8/2022,0031018690/1,31018690, 3230.50,Tonbridge & Malling Leisure Trust,01469100,,Ticket Refunds - Lower Castle,Parking Off-Street,E10HAE01344199,
http://statistics.data.gov.uk/id/local-authority/29UP,Tonbridge & Malling Borough Council,6/8/2022,0031018691/1,31018691, 450.00,Wellden Land Surveys,01410600,,Professional Fees,Boro Drainage & Land Drainage,E20MA000044001,310042817
http://statistics.data.gov.uk/id/local-authority/29UP,Tonbridge & Malling Borough Council,6/8/2022,0031018692/1,31018692, 69.28,Shell U.K. Oil Products Limited,01673300,,"Petrol, Diesel & Oil",Patrolling,B22LF000030106,
http://statistics.data.gov.uk/id/local-authority/29UP,Tonbridge & Malling Borough Council,6/8/2022,0031018692/2,31018692, 75.28,Shell U.K. Oil Products Limited,01673300,,"Petrol, Diesel & Oil",Parking Off-Street,E10HA000030106,
http://statistics.data.gov.uk/id/local-authority/29UP,Tonbridge & Malling Borough Council,6/8/2022,0031018692/3,31018692, 75.28,Shell U.K. Oil Products Limited,01673300,,"Petrol, Diesel & Oil",Parking On-Street,E10HD000030106,
http://statistics.data.gov.uk/id/local-authority/29UP,Tonbridge & Malling Borough Council,6/8/2022,0031018693/1,31018693, 85.79,Shell U.K. Oil Products Limited,01673300,,"Petrol, Diesel & Oil",Patrolling,B22LF000030106,
http://statistics.data.gov.uk/id/local-authority/29UP,Tonbridge & Malling Borough Council,6/8/2022,0031018693/2,31018693, 103.54,Shell U.K. Oil Products Limited,01673300,,"Petrol, Diesel & Oil",Parking Off-Street,E10HA000030106,
http://statistics.data.gov.uk/id/local-authority/29UP,Tonbridge & Malling Borough Council,6/8/2022,0031018693/3,31018693, 103.53,Shell U.K. Oil Products Limited,01673300,,"Petrol, Diesel & Oil",Parking On-Street,E10HD000030106,
http://statistics.data.gov.uk/id/local-authority/29UP,Tonbridge & Malling Borough Council,6/8/2022,0032009588/1,32009588, 24.75,KCS,00054200,,Stationery,Planning Sals&Overheads,D01AJDJ0143003,320003421
http://statistics.data.gov.uk/id/local-authority/29UP,Tonbridge & Malling Borough Council,6/8/2022,0032009589/1,32009589, 2081.20,The Oyster Partnership,01196400,,Temporary Staff,Planning Sals&Overheads,D01AJDJ0111300,
http://statistics.data.gov.uk/id/local-authority/29UP,Tonbridge & Malling Borough Council,6/8/2022,0032009590/1,32009590, 1546.22,The Oyster Partnership,01196400,,Temporary Staff,Planning Sals&Overheads,D01AJDJ0111300,
http://statistics.data.gov.uk/id/local-authority/29UP,Tonbridge & Malling Borough Council,6/8/2022,0032009592/1,32009592, 257.04,KM Media Group Ltd,00053900,,Advertising General,Development Management,A01ABZ99944216,320003416
http://statistics.data.gov.uk/id/local-authority/29UP,Tonbridge & Malling Borough Council,6/8/2022,0032009593/1,32009593, 1939.30,The Oyster Partnership,01196400,,Temporary Staff,Planning Sals&Overheads,D01AJDJ0111300,
http://statistics.data.gov.uk/id/local-authority/29UP,Tonbridge & Malling Borough Council,6/8/2022,0032009594/1,32009594, 1597.08,The Oyster Partnership,01196400,,Temporary Staff,Planning Sals&Overheads,D01AJDJ0111300,
http://statistics.data.gov.uk/id/local-authority/29UP,Tonbridge & Malling Borough Council,6/8/2022,0041034376/1,41034376, 50.00,REDACTED PERSONAL DATA,01851600,,Maintenance - General,Parking On-Street,E10HD000040135,
http://statistics.data.gov.uk/id/local-authority/29UP,Tonbridge & Malling Borough Council,6/8/2022,0041034377/1,41034377, 16.02,Esendex Limited,01008900,,Leased Lines & Modems,Information Technology,D27KD000045011,
http://statistics.data.gov.uk/id/local-authority/29UP,Tonbridge & Malling Borough Council,6/8/2022,0041034378/1,41034378, 1935.00,CIPFA Business Limited,01216800,,Subscriptions,Finance Sals&Overheads,D01AFDF0247002,
http://statistics.data.gov.uk/id/local-authority/29UP,Tonbridge & Malling Borough Council,6/8/2022,0041034379/3,41034379, 800.00,Dartford Borough Council,00026000,,Contract Services,Finance Sals&Overheads,D01AFDF0444005,
http://statistics.data.gov.uk/id/local-authority/29UP,Tonbridge & Malling Borough Council,6/8/2022,0051008703/1,51008703, 3942.00,Haymarket Media Group Limited,01197800,,Recruitment Advertising,Recruitment Expenses,D10DADJ0113110,510010579
http://statistics.data.gov.uk/id/local-authority/29UP,Tonbridge & Malling Borough Council,6/8/2022,0051008704/1,51008704, 82.00,The Institute of Licensing (Events),01463600,,Ext Fees/Prof & Tech,Training,D10DCDR0413561,
http://statistics.data.gov.uk/id/local-authority/29UP,Tonbridge & Malling Borough Council,6/8/2022,0051008705/1,51008705, 80.00,Shelter,00090600,,Ext Fees/Prof & Tech,Training,D10DCDV0713561,
http://statistics.data.gov.uk/id/local-authority/29UP,Tonbridge & Malling Borough Council,6/9/2022,0041034382/1,41034382, 8520.00,Protocol,01848200,,Initial Furniture & Equipment,Capital Renewals Leisure,P05KGBC0209906,
http://statistics.data.gov.uk/id/local-authority/29UP,Tonbridge & Malling Borough Council,6/9/2022,0041034382/2,41034382, 1540.00,Protocol,01848200,,Initial Furniture & Equipment,Capital Renewals Leisure,P05KGBC0209906,
http://statistics.data.gov.uk/id/local-authority/29UP,Tonbridge & Malling Borough Council,6/9/2022,0041034382/3,41034382, 295.00,Protocol,01848200,,Initial Furniture & Equipment,Capital Renewals Leisure,P05KGBC0209906,
http://statistics.data.gov.uk/id/local-authority/29UP,Tonbridge & Malling Borough Council,6/15/2022,0011044036/1,11044036, 440.50,Pinnacle Response Ltd,01573000,,Purchases,Legal Sals&Overheads,D01ARDR0040101,110069441
http://statistics.data.gov.uk/id/local-authority/29UP,Tonbridge & Malling Borough Council,6/15/2022,0011044428/1,11044428, 743.00,G C Industrial Heating Services,00578100,,BRREP Servicing - Heating Syst,Angel Centre,M15HAP20001934,110069491
http://statistics.data.gov.uk/id/local-authority/29UP,Tonbridge & Malling Borough Council,6/15/2022,0011044429/1,11044429, 390.00,G C Industrial Heating Services,00578100,,BRREP Servicing - Heating Syst,Leis Man Poult Wood Golf Centr,M15HEP20001934,110069563
http://statistics.data.gov.uk/id/local-authority/29UP,Tonbridge & Malling Borough Council,6/15/2022,0011044430/1,11044430, 240.00,G C Industrial Heating Services,00578100,,BRREP Response - General,Gibson Building West,M15KBP50001997,110069580
http://statistics.data.gov.uk/id/local-authority/29UP,Tonbridge & Malling Borough Council,6/15/2022,0011044431/1,11044431, 500.00,G C Industrial Heating Services,00578100,,BRREP Servicing - Heating Syst,Leis Man Poult Wood Golf Centr,M15HEP20001934,110069483
http://statistics.data.gov.uk/id/local-authority/29UP,Tonbridge & Malling Borough Council,6/15/2022,0011044432/1,11044432, 335.00,G C Industrial Heating Services,00578100,,BRREP Servicing - Heating Syst,Gibson Building East,M15KGP20001934,110069494
http://statistics.data.gov.uk/id/local-authority/29UP,Tonbridge & Malling Borough Council,6/15/2022,0011044433/1,11044433, 1089.00,G C Industrial Heating Services,00578100,,BRREP Servicing - Heating Syst,Gibson Building West,M15KBP20001934,110069493
http://statistics.data.gov.uk/id/local-authority/29UP,Tonbridge & Malling Borough Council,6/15/2022,0011044434/1,11044434, 2600.00,Dalesauna Ltd,00026800,,BRREP Plant renewals,Larkfield Leisure Centre,M15HDP20001909,110069545
http://statistics.data.gov.uk/id/local-authority/29UP,Tonbridge & Malling Borough Council,6/15/2022,0011044435/1,11044435, 1950.00,Broadwater Technologies,01534500,,BRREP Plant renewals,Tonbridge Swimming Pool,M15HBP20001909,110069543
http://statistics.data.gov.uk/id/local-authority/29UP,Tonbridge & Malling Borough Council,6/15/2022,0011044436/1,11044436, 2100.00,Kent County Council,00322500,,Community Safety Initiatives,Community Safety,D30MA000048134,110069578
http://statistics.data.gov.uk/id/local-authority/29UP,Tonbridge & Malling Borough Council,6/15/2022,0011044437/1,11044437, 234.30,KCS,00054200,,Cleaning & Domestic Supplies,Cleaning & Security,D21FDDD1026001,110068537
http://statistics.data.gov.uk/id/local-authority/29UP,Tonbridge & Malling Borough Council,6/15/2022,0011044438/1,11044438, 149.40,KCS,00054200,,Cleaning & Domestic Supplies,Cleaning & Security,D21FD000026001,110068543
http://statistics.data.gov.uk/id/local-authority/29UP,Tonbridge & Malling Borough Council,6/15/2022,0011044439/1,11044439, 74.97,KCS,00054200,,Cleaning & Domestic Supplies,Cleaning & Security,D21FD000026001,110069598
http://statistics.data.gov.uk/id/local-authority/29UP,Tonbridge & Malling Borough Council,6/15/2022,0011044440/1,11044440, 150.00,BML Building Services Ltd,01505000,,BRREP Response - General,Larkfield Leisure Centre,M15HDP50001997,110069593
http://statistics.data.gov.uk/id/local-authority/29UP,Tonbridge & Malling Borough Council,6/15/2022,0011044441/1,11044441, 95.00,Loxton Installations Ltd,01278800,,BRREP IEE Testing,Larkfield Leisure Centre,M15HDP30001991,110069463
http://statistics.data.gov.uk/id/local-authority/29UP,Tonbridge & Malling Borough Council,6/15/2022,0011044442/1,11044442, 190.00,Loxton Installations Ltd,01278800,,BRREP IEE Testing,Larkfield Leisure Centre,M15HDP30001991,110069462
http://statistics.data.gov.uk/id/local-authority/29UP,Tonbridge & Malling Borough Council,6/15/2022,0011044443/1,11044443, 1316.00,Security & Electronic Solutions Ltd,01379500,,BRREP Servicing - CCTV,Leis Man Poult Wood Golf Centr,M15HEP20001952,110069542
http://statistics.data.gov.uk/id/local-authority/29UP,Tonbridge & Malling Borough Council,6/15/2022,0011044444/1,11044444, 317.00,BML Building Services Ltd,01505000,,BRREP Resp - Vandal / Break-In,PC - General,M15JAP50001998,110069614
http://statistics.data.gov.uk/id/local-authority/29UP,Tonbridge & Malling Borough Council,6/15/2022,0011044445/1,11044445, 356.00,BML Building Services Ltd,01505000,,BRREP Response - General,Leybourne Lakes Country Park,M15HLP50001997,110069615
http://statistics.data.gov.uk/id/local-authority/29UP,Tonbridge & Malling Borough Council,6/15/2022,0011044446/1,11044446, 960.00,G C Industrial Heating Services,00578100,,BRREP Plant renewals,Larkfield Leisure Centre,M15HDP20001909,110069613
http://statistics.data.gov.uk/id/local-authority/29UP,Tonbridge & Malling Borough Council,6/15/2022,0011044447/1,11044447, 161.99,Prosec General Security Ltd,00810600,,Office Security,Ton Castle Council Chamber,D21FC000044047,
http://statistics.data.gov.uk/id/local-authority/29UP,Tonbridge & Malling Borough Council,6/15/2022,0011044447/2,11044447, 948.38,Prosec General Security Ltd,00810600,,Office Security,Cleaning & Security,D21FD000044047,
http://statistics.data.gov.uk/id/local-authority/29UP,Tonbridge & Malling Borough Council,6/15/2022,0011044447/3,11044447, 2754.00,Prosec General Security Ltd,00810600,,Office Security,Tonbridge Gateway,D23TG000044047,
http://statistics.data.gov.uk/id/local-authority/29UP,Tonbridge & Malling Borough Council,6/15/2022,0011044448/1,11044448, 10.00,Sevenoaks District Council,01252500,,Hospitality,Mayoral & Other Member Support,D29LX000048003,
http://statistics.data.gov.uk/id/local-authority/29UP,Tonbridge & Malling Borough Council,6/15/2022,0011044449/1,11044449, 240.00,G C Industrial Heating Services,00578100,,BRREP Servicing - Heating Syst,Gibson Building West,M15KBP20001934,
http://statistics.data.gov.uk/id/local-authority/29UP,Tonbridge & Malling Borough Council,6/15/2022,0011044450/1,11044450, 180.00,G C Industrial Heating Services,00578100,,BRREP Servicing - Sadia Tea,Gibson Building West,M15KBP20001932,
http://statistics.data.gov.uk/id/local-authority/29UP,Tonbridge & Malling Borough Council,6/15/2022,0011044451/1,11044451, 120.00,G C Industrial Heating Services,00578100,,BRREP Response - General,Gibson Building West,M15KBP50001997,
http://statistics.data.gov.uk/id/local-authority/29UP,Tonbridge & Malling Borough Council,6/15/2022,0011044452/1,11044452, 120.00,G C Industrial Heating Services,00578100,,BRREP Servicing - Sadia Tea,Gibson Building West,M15KBP20001932,
http://statistics.data.gov.uk/id/local-authority/29UP,Tonbridge & Malling Borough Council,6/15/2022,0011044453/1,11044453, 208.39,DORMA UK Ltd,00413500,549361128,BRREP Servicing-entrance doors,Gibson Building East,M15KGP20001927,
http://statistics.data.gov.uk/id/local-authority/29UP,Tonbridge & Malling Borough Council,6/15/2022,0011044454/1,11044454, 150.00,G C Industrial Heating Services,00578100,,BRREP Response - General,Leis Man Poult Wood Golf Centr,M15HEP50001997,
http://statistics.data.gov.uk/id/local-authority/29UP,Tonbridge & Malling Borough Council,6/15/2022,0011044455/1,11044455, 2102.76,KH Recruitment Ltd,01738900,,Temporary Staff,Personnel Sals&Overheads,D01ABDB0311300,
http://statistics.data.gov.uk/id/local-authority/29UP,Tonbridge & Malling Borough Council,6/15/2022,0011044456/3,11044456, 1561.90,KH Recruitment Ltd,01738900,,Temporary Staff,Personnel Sals&Overheads,D01ABDB0011300,
http://statistics.data.gov.uk/id/local-authority/29UP,Tonbridge & Malling Borough Council,6/15/2022,0011044457/1,11044457, 1926.00,Kent County Council,00322500,,Licences,Ton Castle Council Chamber,D21FC000048011,
http://statistics.data.gov.uk/id/local-authority/29UP,Tonbridge & Malling Borough Council,6/15/2022,0011044458/3,11044458, 800.00,Dartford Borough Council,00026000,,Office Security,Tonbridge Gateway,D23TG000044047,
http://statistics.data.gov.uk/id/local-authority/29UP,Tonbridge & Malling Borough Council,6/15/2022,0011044459/1,11044459, 722.00,Disclosure & Barring Service,00865900,,Professional Fees,Licences - Fee Paying,H27SH000044001,
http://statistics.data.gov.uk/id/local-authority/29UP,Tonbridge & Malling Borough Council,6/15/2022,0011044460/3,11044460, 20.47,Oasis Group  - Box-It South East,00966800,931579211,Purchases,Electoral Registration,D31MF000040101,
http://statistics.data.gov.uk/id/local-authority/29UP,Tonbridge & Malling Borough Council,6/15/2022,0011044461/3,11044461, 597.38,KH Recruitment Ltd,01738900,,Temporary Staff,Personnel Sals&Overheads,D01ABDB0311300,
http://statistics.data.gov.uk/id/local-authority/29UP,Tonbridge & Malling Borough Council,6/15/2022,0011044462/3,11044462, 76.20,Archant Community Media Ltd,00831700,,Marketing,Ton Castle Council Chamber,D21FC000044215,
http://statistics.data.gov.uk/id/local-authority/29UP,Tonbridge & Malling Borough Council,6/15/2022,0011044463/3,11044463, 2078.87,KH Recruitment Ltd,01738900,,Temporary Staff,Personnel Sals&Overheads,D01ABDB0311300,
http://statistics.data.gov.uk/id/local-authority/29UP,Tonbridge & Malling Borough Council,6/15/2022,0011044464/3,11044464, 1337.77,Royal Mail,00086200,,Purchases,Mailsort Stock Account,K37BR000001002,
http://statistics.data.gov.uk/id/local-authority/29UP,Tonbridge & Malling Borough Council,6/15/2022,0011044465/3,11044465, 25.64,Royal Mail,00086200,,Postages - Business Reply,Electoral Registration,D31MF000045003,
http://statistics.data.gov.uk/id/local-authority/29UP,Tonbridge & Malling Borough Council,6/15/2022,0011044465/4,11044465, 14.40,Royal Mail,00086200,,Purchases,Business Reply Stock Account,K14AT000001002,
http://statistics.data.gov.uk/id/local-authority/29UP,Tonbridge & Malling Borough Council,6/15/2022,0011044466/3,11044466, 30.00,Royal Mail,00086200,,Postages - Business Reply,Electoral Registration,D31MF000045003,
http://statistics.data.gov.uk/id/local-authority/29UP,Tonbridge & Malling Borough Council,6/15/2022,0011044466/4,11044466, 4.56,Royal Mail,00086200,,Purchases,Business Reply Stock Account,K14AT000001002,
http://statistics.data.gov.uk/id/local-authority/29UP,Tonbridge & Malling Borough Council,6/15/2022,0011044467/3,11044467, 3.04,Royal Mail,00086200,,Postages - Business Reply,Electoral Registration,D31MF000045003,
http://statistics.data.gov.uk/id/local-authority/29UP,Tonbridge & Malling Borough Council,6/15/2022,0011044468/3,11044468, 1.75,Royal Mail,00086200,,Purchases,Mailsort Stock Account,K37BR000001002,
http://statistics.data.gov.uk/id/local-authority/29UP,Tonbridge & Malling Borough Council,6/15/2022,0011044468/4,11044468, 11.20,Royal Mail,00086200,,Purchases,Mailsort Stock Account,K37BR000001002,
http://statistics.data.gov.uk/id/local-authority/29UP,Tonbridge & Malling Borough Council,6/15/2022,0011044468/5,11044468, 2504.61,Royal Mail,00086200,,Purchases,Mailsort Stock Account,K37BR000001002,
http://statistics.data.gov.uk/id/local-authority/29UP,Tonbridge & Malling Borough Council,6/15/2022,0011044469/3,11044469, 1.36,Royal Mail,00086200,,Postages - Business Reply,Electoral Registration,D31MF000045003,
http://statistics.data.gov.uk/id/local-authority/29UP,Tonbridge & Malling Borough Council,6/15/2022,0011044470/3,11044470, 286.47,Premier Paper Group,01421800,,Purchases - Paper,Printing,D22GA000040102,
http://statistics.data.gov.uk/id/local-authority/29UP,Tonbridge & Malling Borough Council,6/15/2022,0011044471/3,11044471, 422.00,Speedy Services (Speedy Hire),01840400,,BRREP General Maintenance,Angel Centre,M15HAP10001900,
http://statistics.data.gov.uk/id/local-authority/29UP,Tonbridge & Malling Borough Council,6/15/2022,0011044472/3,11044472, 372.85,Speedy Services (Speedy Hire),01840400,,BRREP General Maintenance,Angel Centre,M15HAP10001900,
http://statistics.data.gov.uk/id/local-authority/29UP,Tonbridge & Malling Borough Council,6/15/2022,0011044473/1,11044473, 4.16,B&Q/Screwfix Direct(TradeUKAccount),00141300,,Purchases,Cleaning & Security,D21FD000040101,
http://statistics.data.gov.uk/id/local-authority/29UP,Tonbridge & Malling Borough Council,6/15/2022,0011044474/1,11044474, 1208.37,Royal Mail,00086200,,Purchases,Mailsort Stock Account,K37BR000001002,
http://statistics.data.gov.uk/id/local-authority/29UP,Tonbridge & Malling Borough Council,6/15/2022,0011044474/2,11044474, 5.83,Royal Mail,00086200,,Purchases,Mailsort Stock Account,K37BR000001002,
http://statistics.data.gov.uk/id/local-authority/29UP,Tonbridge & Malling Borough Council,6/15/2022,0011044475/1,11044475, 3880.33,Royal Mail,00086200,,Purchases,Mailsort Stock Account,K37BR000001002,
http://statistics.data.gov.uk/id/local-authority/29UP,Tonbridge & Malling Borough Council,6/15/2022,0011044475/2,11044475, 13.95,Royal Mail,00086200,,Purchases,Mailsort Stock Account,K37BR000001002,
http://statistics.data.gov.uk/id/local-authority/29UP,Tonbridge & Malling Borough Council,6/15/2022,0011044476/1,11044476, 146.32,Biffa Waste Services Ltd,01284500,,Trade Refuse Charges,Cleaning & Security,D21FD000044008,
http://statistics.data.gov.uk/id/local-authority/29UP,Tonbridge & Malling Borough Council,6/15/2022,0011044477/1,11044477, 42.72,Biffa Waste Services Ltd,01284500,,Trade Refuse Charges,Cleaning & Security,D21FD000044008,
http://statistics.data.gov.uk/id/local-authority/29UP,Tonbridge & Malling Borough Council,6/15/2022,0011044478/1,11044478, 42.72,Biffa Waste Services Ltd,01284500,,Trade Refuse Charges,Cleaning & Security,D21FD000044008,
http://statistics.data.gov.uk/id/local-authority/29UP,Tonbridge & Malling Borough Council,6/15/2022,0011044479/1,11044479, 184.92,Biffa Waste Services Ltd,01284500,,Trade Refuse Charges,Cleaning & Security,D21FD000044008,
http://statistics.data.gov.uk/id/local-authority/29UP,Tonbridge & Malling Borough Council,6/15/2022,0011044480/1,11044480, 93.40,Biffa Waste Services Ltd,01284500,,Trade Refuse Charges,Cleaning & Security,D21FD000044008,
http://statistics.data.gov.uk/id/local-authority/29UP,Tonbridge & Malling Borough Council,6/15/2022,0011044481/1,11044481, 308.20,Biffa Waste Services Ltd,01284500,,Trade Refuse Charges,Cleaning & Security,D21FD000044008,
http://statistics.data.gov.uk/id/local-authority/29UP,Tonbridge & Malling Borough Council,6/15/2022,0011044482/1,11044482, 369.24,Security & Electronic Solutions Ltd,01379500,,BRREP Servicing - CCTV,Angel Centre,M15HAP20001952,
http://statistics.data.gov.uk/id/local-authority/29UP,Tonbridge & Malling Borough Council,6/15/2022,0011044483/1,11044483, 430.69,Security & Electronic Solutions Ltd,01379500,,BRREP Servicing - CCTV,Leis Man Poult Wood Golf Centr,M15HEP20001952,
http://statistics.data.gov.uk/id/local-authority/29UP,Tonbridge & Malling Borough Council,6/15/2022,0011044484/1,11044484, 676.44,Security & Electronic Solutions Ltd,01379500,,BRREP Servicing - CCTV,Tonbridge Swimming Pool,M15HBP20001952,
http://statistics.data.gov.uk/id/local-authority/29UP,Tonbridge & Malling Borough Council,6/15/2022,0011044485/1,11044485, 676.44,Security & Electronic Solutions Ltd,01379500,,BRREP Servicing - CCTV,Larkfield Leisure Centre,M15HDP20001952,
http://statistics.data.gov.uk/id/local-authority/29UP,Tonbridge & Malling Borough Council,6/15/2022,0011044486/1,11044486, 170.50,BML Building Services Ltd,01505000,,BRREP Response - General,Pleasure Grounds & Open Spaces,M15HHP50001997,
http://statistics.data.gov.uk/id/local-authority/29UP,Tonbridge & Malling Borough Council,6/15/2022,0011044487/1,11044487, 79.00,BML Building Services Ltd,01505000,,BRREP Response - General,Larkfield Leisure Centre,M15HDP50001997,
http://statistics.data.gov.uk/id/local-authority/29UP,Tonbridge & Malling Borough Council,6/15/2022,0011044488/1,11044488, 48.75,NLC Nova Lift Company Ltd,01735600,,BRREP Servicing - lifts,Leis Man Poult Wood Golf Centr,M15HEP20001930,
http://statistics.data.gov.uk/id/local-authority/29UP,Tonbridge & Malling Borough Council,6/15/2022,0011044489/1,11044489, 1217.80,Sellick Partnership Group Limited,01336800,,Temporary Staff,Legal Sals&Overheads,D01ARDR0011300,
http://statistics.data.gov.uk/id/local-authority/29UP,Tonbridge & Malling Borough Council,6/15/2022,0011044490/1,11044490, 1217.80,Sellick Partnership Group Limited,01336800,,Temporary Staff,Legal Sals&Overheads,D01ARDR0011300,
http://statistics.data.gov.uk/id/local-authority/29UP,Tonbridge & Malling Borough Council,6/15/2022,0011044491/1,11044491, 7500.00,The East Malling Centre,01168000,,Charitable / Voluntary Organis,Grants & Payments to Vol Orgn,D37PA000047005,
http://statistics.data.gov.uk/id/local-authority/29UP,Tonbridge & Malling Borough Council,6/15/2022,0012008373/1,12008373, 2.00,CCS Media Ltd,00018000,,BRREP General Maintenance,Gibson Building East,M15KGP10001900,410032200
http://statistics.data.gov.uk/id/local-authority/29UP,Tonbridge & Malling Borough Council,6/15/2022,0012008373/2,12008373, 659.99,CCS Media Ltd,00018000,,BRREP General Maintenance,Gibson Building East,M15KGP10001900,410032200
http://statistics.data.gov.uk/id/local-authority/29UP,Tonbridge & Malling Borough Council,6/15/2022,0012008374/1,12008374, 2100.00,TotalMobile Limited,01725400,,Consultancy Fees,Information Technology,D27KD000044011,410032078
http://statistics.data.gov.uk/id/local-authority/29UP,Tonbridge & Malling Borough Council,6/15/2022,0012008375/1,12008375, 75.00,Get It Repaired,01631300,287357752,Mobile Telephones,St Scene & Leis Sals&Overheads,D01AGDG2045013,410032204
http://statistics.data.gov.uk/id/local-authority/29UP,Tonbridge & Malling Borough Council,6/15/2022,0012008376/1,12008376, 4375.00,KHIPU Networks Limited,01191500,,Consultancy Fees,Information Technology,D27KD000044011,410032205
http://statistics.data.gov.uk/id/local-authority/29UP,Tonbridge & Malling Borough Council,6/15/2022,0012008377/1,12008377, 29.99,CCS Media Ltd,00018000,,Purchases,Information Technology,D27KD000040101,410032206
http://statistics.data.gov.uk/id/local-authority/29UP,Tonbridge & Malling Borough Council,6/15/2022,0012008377/2,12008377, 2.00,CCS Media Ltd,00018000,,Delivery Expenses,Information Technology,D27KD000044069,410032206
http://statistics.data.gov.uk/id/local-authority/29UP,Tonbridge & Malling Borough Council,6/15/2022,0012008378/1,12008378, 5.50,Vanquish Tech,01798700,,Delivery Expenses,Information Technology,D27KD000044069,410032207
http://statistics.data.gov.uk/id/local-authority/29UP,Tonbridge & Malling Borough Council,6/15/2022,0012008378/2,12008378, 68.00,Vanquish Tech,01798700,,Initial Furniture & Equipment,Capital Renewals IT,P06FBFB1009906,410032207
http://statistics.data.gov.uk/id/local-authority/29UP,Tonbridge & Malling Borough Council,6/15/2022,0012008378/3,12008378, 577.76,Vanquish Tech,01798700,,Initial Furniture & Equipment,Capital Renewals IT,P06FBFB1009906,410032207
http://statistics.data.gov.uk/id/local-authority/29UP,Tonbridge & Malling Borough Council,6/15/2022,0012008379/1,12008379, 5.74,Daisy Communications,01068100,,Telephones - Rentals,General Admin Telephones,D24GT000045005,
http://statistics.data.gov.uk/id/local-authority/29UP,Tonbridge & Malling Borough Council,6/15/2022,0012008379/2,12008379, 252.90,Daisy Communications,01068100,,Telephones - Call Costs,General Admin Telephones,D24GT000045006,
http://statistics.data.gov.uk/id/local-authority/29UP,Tonbridge & Malling Borough Council,6/15/2022,0012008379/3,12008379, 84.88,Daisy Communications,01068100,,Leased Lines & Modems,Information Technology,D27KD000045011,
http://statistics.data.gov.uk/id/local-authority/29UP,Tonbridge & Malling Borough Council,6/15/2022,0012008379/4,12008379, 65.88,Daisy Communications,01068100,,Maintenance - General,Security Services Management,E09GA000040135,
http://statistics.data.gov.uk/id/local-authority/29UP,Tonbridge & Malling Borough Council,6/15/2022,0021037971/3,21037971, 3.75,G.L. & R.G. Bourne,00737500,,Maintenance of Grounds,Haysden Country Park,B22LC000020402,
http://statistics.data.gov.uk/id/local-authority/29UP,Tonbridge & Malling Borough Council,6/15/2022,0021037972/1,21037972, 544.98,G.L. & R.G. Bourne,00737500,,Gates / Security,Haysden Country Park,B22LC000044017,210056722
http://statistics.data.gov.uk/id/local-authority/29UP,Tonbridge & Malling Borough Council,6/15/2022,0021037973/1,21037973, 40.00,G.L. & R.G. Bourne,00737500,,Maintenance of Grounds,Haysden Country Park,B22LC000020402,210056723
http://statistics.data.gov.uk/id/local-authority/29UP,Tonbridge & Malling Borough Council,6/15/2022,0021037974/1,21037974, 74.71,G.L. & R.G. Bourne,00737500,,Gates / Security,Haysden Country Park,B22LC000044017,210056722
http://statistics.data.gov.uk/id/local-authority/29UP,Tonbridge & Malling Borough Council,6/15/2022,0021037975/1,21037975, 34.99,KCS,00054200,,Purchases,Haysden Country Park,B22LC000040101,210056815
http://statistics.data.gov.uk/id/local-authority/29UP,Tonbridge & Malling Borough Council,6/15/2022,0021037976/1,21037976, 624.00,Streetmaster (South Wales) Ltd,00222100,,Maintenance of Grounds,Sports Grounds,B13ET000020402,210056702
http://statistics.data.gov.uk/id/local-authority/29UP,Tonbridge & Malling Borough Council,6/15/2022,0021037977/1,21037977, 1770.00,Active Med Supplies,01783700,,Initial Furniture & Equipment,Capital Renewals Leisure,P05KGBC0309906,220003137
http://statistics.data.gov.uk/id/local-authority/29UP,Tonbridge & Malling Borough Council,6/15/2022,0022026720/3,22026720, 219.79,British Gas Services LTD,01260000,,Electricity,Homelessness,C01AAMAUN21002,
http://statistics.data.gov.uk/id/local-authority/29UP,Tonbridge & Malling Borough Council,6/15/2022,0022026721/1,22026721, 123.75,Sevenoaks District Council,00089300,,Healthy Living Initiatives,Public Health - Healthy Living,H40SYVH0048145,220003220
http://statistics.data.gov.uk/id/local-authority/29UP,Tonbridge & Malling Borough Council,6/15/2022,0022026722/1,22026722, 198.00,Acoustic Calibration Services Ltd,00775900,,Air Quality Monitoring,Environmental Protection,H32SN000054016,220003227
http://statistics.data.gov.uk/id/local-authority/29UP,Tonbridge & Malling Borough Council,6/15/2022,0022026722/2,22026722, 40.00,Acoustic Calibration Services Ltd,00775900,,Air Quality Monitoring,Environmental Protection,H32SN000054016,220003227
http://statistics.data.gov.uk/id/local-authority/29UP,Tonbridge & Malling Borough Council,6/15/2022,0022026723/1,22026723, 37.00,Biffa Waste Services Ltd,01284500,,Trade Refuse Charges,Cleaning & Security,D21FD000044008,
http://statistics.data.gov.uk/id/local-authority/29UP,Tonbridge & Malling Borough Council,6/15/2022,0022026724/1,22026724, 50.00,Moatfield Surgery,01851900,,Medical Assessments,Homelessness,C01AA000056009,
http://statistics.data.gov.uk/id/local-authority/29UP,Tonbridge & Malling Borough Council,6/15/2022,0022026725/1,22026725, 500.00,Lucy and Martin Recycling LTD,01694200,,General Maintenance,Dry Recycling,H34SR000020301,
http://statistics.data.gov.uk/id/local-authority/29UP,Tonbridge & Malling Borough Council,6/15/2022,0022026726/1,22026726, 2537.40,Lucy and Martin Recycling LTD,01694200,,Contract Payments,Garden Waste Recycling,H34ST000054001,
http://statistics.data.gov.uk/id/local-authority/29UP,Tonbridge & Malling Borough Council,6/15/2022,0022026727/1,22026727, 602.15,Select Plan Ltd,01843400,,Air Quality Monitoring,Environmental Protection,H32SN000054016,220003218
http://statistics.data.gov.uk/id/local-authority/29UP,Tonbridge & Malling Borough Council,6/15/2022,0022026728/1,22026728, 4322.11,Ward Security LTD,01490000,,Dog Warden,Street Scene,H23SD000044100,
http://statistics.data.gov.uk/id/local-authority/29UP,Tonbridge & Malling Borough Council,6/15/2022,0022026729/1,22026729, 4741.28,Ward Security LTD,01490000,,Dog Warden,Street Scene,H23SD000044100,
http://statistics.data.gov.uk/id/local-authority/29UP,Tonbridge & Malling Borough Council,6/15/2022,0022026730/1,22026730, 157.18,British Gas Services LTD,01260000,,Electricity,Homelessness,C01AAMAUN21002,
http://statistics.data.gov.uk/id/local-authority/29UP,Tonbridge & Malling Borough Council,6/15/2022,0022026731/1,22026731, 3226.14,Clarion Housing,01776300,,Temporary Accommodation,Homelessness,C01AA000044051,
http://statistics.data.gov.uk/id/local-authority/29UP,Tonbridge & Malling Borough Council,6/15/2022,0022026732/1,22026732, 2919.58,Clarion Housing,01776300,,Temporary Accommodation,Homelessness,C01AA000044051,
http://statistics.data.gov.uk/id/local-authority/29UP,Tonbridge & Malling Borough Council,6/15/2022,0022026735/1,22026735, 825.00,G2 Recruitment Solutions,01786000,,Temporary Staff,Env Hlth & Hsg Sals&Overheads,D01AVDV0711300,
http://statistics.data.gov.uk/id/local-authority/29UP,Tonbridge & Malling Borough Council,6/15/2022,0022026736/1,22026736, 721.97,G2 Recruitment Solutions,01786000,,Temporary Staff,Env Hlth & Hsg Sals&Overheads,D01AVDV0711300,
http://statistics.data.gov.uk/id/local-authority/29UP,Tonbridge & Malling Borough Council,6/15/2022,0022026737/1,22026737, 825.00,G2 Recruitment Solutions,01786000,,Temporary Staff,Env Hlth & Hsg Sals&Overheads,D01AVDV0711300,
http://statistics.data.gov.uk/id/local-authority/29UP,Tonbridge & Malling Borough Council,6/15/2022,0022026738/1,22026738, 721.97,G2 Recruitment Solutions,01786000,,Temporary Staff,Env Hlth & Hsg Sals&Overheads,D01AVDV0711300,
http://statistics.data.gov.uk/id/local-authority/29UP,Tonbridge & Malling Borough Council,6/15/2022,0022026739/1,22026739, 741.31,Peabody South East LTD,01680900,,Other Expenses,Disabled Facilities Grant Mand,P03AC000009908,
http://statistics.data.gov.uk/id/local-authority/29UP,Tonbridge & Malling Borough Council,6/15/2022,0022026740/1,22026740, 5054.06,Hubbard & Houghton Construction Ltd,00970600,,Other Expenses,Disabled Facilities Grant Mand,P03AC000009908,
http://statistics.data.gov.uk/id/local-authority/29UP,Tonbridge & Malling Borough Council,6/15/2022,0022026741/1,22026741, 1108.61,Peabody South East LTD,01680900,,Other Expenses,Disabled Facilities Grant Mand,P03AC000009908,
http://statistics.data.gov.uk/id/local-authority/29UP,Tonbridge & Malling Borough Council,6/15/2022,0031018694/1,31018694, 160.65,KM Media Group Ltd,00053900,,Advertising General,Parking On-Street,E10HD000044216,310042822
http://statistics.data.gov.uk/id/local-authority/29UP,Tonbridge & Malling Borough Council,6/15/2022,0031018695/1,31018695, 28702.86,Tunbridge Wells Borough Council,00844600,,Payment re Prev Yrs Cred Acc,Sundry Creditors SSLTS,J80TL000001101,
http://statistics.data.gov.uk/id/local-authority/29UP,Tonbridge & Malling Borough Council,6/15/2022,0031018696/1,31018696, 6.33,Npower Ltd,01675800,,Electricity,Parking Off-Street,E10HA000021002,
http://statistics.data.gov.uk/id/local-authority/29UP,Tonbridge & Malling Borough Council,6/15/2022,0031018696/2,31018696, 140.22,Npower Ltd,01675800,,Electricity,Parking Off-Street,E10HA000021002,
http://statistics.data.gov.uk/id/local-authority/29UP,Tonbridge & Malling Borough Council,6/15/2022,0031018697/1,31018697, 2.09,Npower Ltd,01675800,,Electricity,Parking Off-Street,E10HA000021002,
http://statistics.data.gov.uk/id/local-authority/29UP,Tonbridge & Malling Borough Council,6/15/2022,0031018697/2,31018697, 54.13,Npower Ltd,01675800,,Electricity,Parking Off-Street,E10HA000021002,
http://statistics.data.gov.uk/id/local-authority/29UP,Tonbridge & Malling Borough Council,6/15/2022,0031018698/1,31018698, 1.13,Npower Ltd,01675800,,Electricity,Parking Off-Street,E10HA000021002,
http://statistics.data.gov.uk/id/local-authority/29UP,Tonbridge & Malling Borough Council,6/15/2022,0031018698/2,31018698, 30.12,Npower Ltd,01675800,,Electricity,Parking Off-Street,E10HA000021002,
http://statistics.data.gov.uk/id/local-authority/29UP,Tonbridge & Malling Borough Council,6/15/2022,0032009596/3,32009596, 1680.00,G2 Recruitment Solutions,01786000,,Temporary Staff,Planning Sals&Overheads,D01AJDJ0111300,
http://statistics.data.gov.uk/id/local-authority/29UP,Tonbridge & Malling Borough Council,6/15/2022,0032009597/3,32009597, 2118.64,G2 Recruitment Solutions,01786000,,Temporary Staff,Planning Sals&Overheads,D01AJDJ0111300,
http://statistics.data.gov.uk/id/local-authority/29UP,Tonbridge & Malling Borough Council,6/15/2022,0032009598/3,32009598, 1058.00,Vivid Resourcing,01773700,,Temporary Staff,Planning Sals&Overheads,D01AJDJ0111300,
http://statistics.data.gov.uk/id/local-authority/29UP,Tonbridge & Malling Borough Council,6/15/2022,0032009599/3,32009599, 868.00,Vivid Resourcing,01773700,,Temporary Staff,Planning Sals&Overheads,D01AJDJ0111300,
http://statistics.data.gov.uk/id/local-authority/29UP,Tonbridge & Malling Borough Council,6/15/2022,0032009604/1,32009604, 1680.00,G2 Recruitment Solutions,01786000,,Temporary Staff,Planning Sals&Overheads,D01AJDJ0111300,
http://statistics.data.gov.uk/id/local-authority/29UP,Tonbridge & Malling Borough Council,6/15/2022,0032009605/1,32009605, 2118.64,G2 Recruitment Solutions,01786000,,Temporary Staff,Planning Sals&Overheads,D01AJDJ0111300,
http://statistics.data.gov.uk/id/local-authority/29UP,Tonbridge & Malling Borough Council,6/15/2022,0032009606/1,32009606, 149.94,KM Media Group Ltd,00053900,,Advertising General,Development Management,A01ABZ99944216,320003417
http://statistics.data.gov.uk/id/local-authority/29UP,Tonbridge & Malling Borough Council,6/15/2022,0032009607/1,32009607, 1419.00,The Oyster Partnership,01196400,,Temporary Staff,Planning Sals&Overheads,D01AJDJ0111300,
http://statistics.data.gov.uk/id/local-authority/29UP,Tonbridge & Malling Borough Council,6/15/2022,0032009608/1,32009608, 983.48,The Oyster Partnership,01196400,,Temporary Staff,Planning Sals&Overheads,D01AJDJ0111300,
http://statistics.data.gov.uk/id/local-authority/29UP,Tonbridge & Malling Borough Council,6/15/2022,0032009609/1,32009609, 1259.90,Tunbridge Wells Borough Council,00844600,,Temporary Staff,Planning Sals&Overheads,D01AJDJ0311300,
http://statistics.data.gov.uk/id/local-authority/29UP,Tonbridge & Malling Borough Council,6/15/2022,0032009610/1,32009610, 495.00,Seymour & Saunders Electrical Ltd,01500300,467735604,Competent Persons Schemes,Building Control,A01AD000048116,
http://statistics.data.gov.uk/id/local-authority/29UP,Tonbridge & Malling Borough Council,6/15/2022,0041034386/1,41034386, 101.70,Adelante Software Limited,01393800,812115871,Credit Card Commission,Banking Arrangements,D43QK000044082,
http://statistics.data.gov.uk/id/local-authority/29UP,Tonbridge & Malling Borough Council,6/15/2022,0041034387/1,41034387, 71.76,Adelante Software Limited,01393800,812115871,Credit Card Commission,Banking Arrangements,D43QK000044082,
http://statistics.data.gov.uk/id/local-authority/29UP,Tonbridge & Malling Borough Council,6/15/2022,0041034388/1,41034388, 1605.50,KCC re Kent Pension Fund,01282800,,Professional Fees,Public Accountability,D29LR000044001,
http://statistics.data.gov.uk/id/local-authority/29UP,Tonbridge & Malling Borough Council,6/15/2022,0041034389/1,41034389, 787.50,Morgan Hunt UK Ltd,01086900,,Temporary Staff,Finance Sals&Overheads,D01AFDF1111300,
http://statistics.data.gov.uk/id/local-authority/29UP,Tonbridge & Malling Borough Council,6/15/2022,0041034390/1,41034390, 143.84,Maidstone Borough Council,01173700,,Bailiffs Commission,Local Revenue & NNDR Collect,D41QA000044075,
http://statistics.data.gov.uk/id/local-authority/29UP,Tonbridge & Malling Borough Council,6/15/2022,0041034391/1,41034391, 2911.37,Maidstone Borough Council,01173700,,Bailiffs Commission,Local Revenue & NNDR Collect,D41QA000044075,
http://statistics.data.gov.uk/id/local-authority/29UP,Tonbridge & Malling Borough Council,6/15/2022,0041034392/1,41034392, 1088.36,Rundle & Co Ltd,00087200,,Bailiffs Commission,Local Revenue & NNDR Collect,D41QA000044075,
http://statistics.data.gov.uk/id/local-authority/29UP,Tonbridge & Malling Borough Council,6/15/2022,0041034393/1,41034393, 1430.06,Rundle & Co Ltd,00087200,,Bailiffs Commission,Local Revenue & NNDR Collect,D41QA000044075,
http://statistics.data.gov.uk/id/local-authority/29UP,Tonbridge & Malling Borough Council,6/15/2022,0041034394/1,41034394, 26.60,Tameside Metropolitan Borough,00770200,,Other Expenses,Finance Sals&Overheads,D01AFDF0648010,
http://statistics.data.gov.uk/id/local-authority/29UP,Tonbridge & Malling Borough Council,6/15/2022,0051008708/3,51008708, 30.00,Maidstone & Tun Wells NHS Trust,00067100,,Occuptional Health Medicals,Health Care,D10DBDA0013311,
http://statistics.data.gov.uk/id/local-authority/29UP,Tonbridge & Malling Borough Council,6/15/2022,0051008708/4,51008708, 30.00,Maidstone & Tun Wells NHS Trust,00067100,,Occuptional Health Medicals,Health Care,D10DBDE0413311,
http://statistics.data.gov.uk/id/local-authority/29UP,Tonbridge & Malling Borough Council,6/15/2022,0051008708/5,51008708, 30.00,Maidstone & Tun Wells NHS Trust,00067100,,Occuptional Health Medicals,Health Care,D10DBDG2013311,
http://statistics.data.gov.uk/id/local-authority/29UP,Tonbridge & Malling Borough Council,6/15/2022,0051008708/6,51008708, 30.00,Maidstone & Tun Wells NHS Trust,00067100,,Occuptional Health Medicals,Health Care,D10DBDJ0113311,
http://statistics.data.gov.uk/id/local-authority/29UP,Tonbridge & Malling Borough Council,6/15/2022,0051008709/1,51008709, 212.00,Maidstone & Tun Wells NHS Trust,00067100,,Occuptional Health Medicals,Health Care,D10DBDE0413311,
http://statistics.data.gov.uk/id/local-authority/29UP,Tonbridge & Malling Borough Council,6/15/2022,0051008709/2,51008709, 140.00,Maidstone & Tun Wells NHS Trust,00067100,,Occuptional Health Medicals,Health Care,D10DBDJ0113311,
http://statistics.data.gov.uk/id/local-authority/29UP,Tonbridge & Malling Borough Council,6/15/2022,0051008709/3,51008709, 72.00,Maidstone & Tun Wells NHS Trust,00067100,,Occuptional Health Medicals,Health Care,D10DBDJ0313311,
http://statistics.data.gov.uk/id/local-authority/29UP,Tonbridge & Malling Borough Council,6/15/2022,0051008710/3,51008710, 82.00,The Institute of Licensing (Events),01463600,,Ext Fees/Prof & Tech,Training,D10DCDR0413561,
http://statistics.data.gov.uk/id/local-authority/29UP,Tonbridge & Malling Borough Council,6/16/2022,0041034404/1,41034404, 592.52,Utax UK Ltd,01658500,642302771,Leasing Charges,Multi Function Devices,D22GB000044038,
http://statistics.data.gov.uk/id/local-authority/29UP,Tonbridge & Malling Borough Council,6/17/2022,0041034411/1,41034411, 59.95,Allpay Limited,01816500,,Giro / Swipe Card Charges,Local Revenue & NNDR Collect,D41QA000044083,
http://statistics.data.gov.uk/id/local-authority/29UP,Tonbridge & Malling Borough Council,6/17/2022,0041034413/1,41034413, 213.75,National Westminster Bank Plc,00069400,,Bank Charges,Banking Arrangements,D43QK000044222,
http://statistics.data.gov.uk/id/local-authority/29UP,Tonbridge & Malling Borough Council,6/21/2022,0041034427/1,41034427, 20.43,WorldPay Ltd,01402000,991280207,Credit Card Commission,Banking Arrangements,D43QK000044082,
http://statistics.data.gov.uk/id/local-authority/29UP,Tonbridge & Malling Borough Council,6/22/2022,0011044492/1,11044492, 28.00,East Sussex Fire Ltd,01843100,,Repairs & Mtce to Buildings,Homelessness,C01AATNHS20101,110069587
http://statistics.data.gov.uk/id/local-authority/29UP,Tonbridge & Malling Borough Council,6/22/2022,0011044493/1,11044493, 359.88,KCS,00054200,,Cleaning & Domestic Supplies,Cleaning & Security,D21FD000026001,110069610
http://statistics.data.gov.uk/id/local-authority/29UP,Tonbridge & Malling Borough Council,6/22/2022,0011044493/2,11044493, 239.00,KCS,00054200,,Cleaning & Domestic Supplies,Cleaning & Security,D21FD000026001,110069610
http://statistics.data.gov.uk/id/local-authority/29UP,Tonbridge & Malling Borough Council,6/22/2022,0011044493/3,11044493, 29.88,KCS,00054200,,Cleaning & Domestic Supplies,Cleaning & Security,D21FD000026001,110069610
http://statistics.data.gov.uk/id/local-authority/29UP,Tonbridge & Malling Borough Council,6/22/2022,0011044493/4,11044493, 41.97,KCS,00054200,,Cleaning & Domestic Supplies,Cleaning & Security,D21FD000026001,110069610
http://statistics.data.gov.uk/id/local-authority/29UP,Tonbridge & Malling Borough Council,6/22/2022,0011044493/5,11044493, 5.85,KCS,00054200,,Cleaning & Domestic Supplies,Cleaning & Security,D21FD000026001,110069610
http://statistics.data.gov.uk/id/local-authority/29UP,Tonbridge & Malling Borough Council,6/22/2022,0011044494/1,11044494, 400.00,Arnold & Court Ltd,01411300,,BRREP Drain and gully cleaning,Kings Hill Offices - Ext Areas,M15KAP20001975,110069609
http://statistics.data.gov.uk/id/local-authority/29UP,Tonbridge & Malling Borough Council,6/22/2022,0011044495/1,11044495, 4964.00,West Malling Parish Council,00112700,,Re-opening High Streets,Eco Dev & Reg Gen Bus Support,D52TDCV1948076,
http://statistics.data.gov.uk/id/local-authority/29UP,Tonbridge & Malling Borough Council,6/22/2022,0011044496/1,11044496, 963.77,KH Recruitment Ltd,01738900,,Temporary Staff,Personnel Sals&Overheads,D01ABDB0311300,
http://statistics.data.gov.uk/id/local-authority/29UP,Tonbridge & Malling Borough Council,6/22/2022,0011044497/1,11044497, 150.00,Barden Stores And Post Office,00008600,,Economic Dev Inititatives,Eco Dev & Reg Gen Bus Support,D52TD000047025,
http://statistics.data.gov.uk/id/local-authority/29UP,Tonbridge & Malling Borough Council,6/22/2022,0011044498/1,11044498, 66.00,CEDR Services Ltd,01848900,,Legal Fees,Legal Sals&Overheads,D01ARDR0044002,
http://statistics.data.gov.uk/id/local-authority/29UP,Tonbridge & Malling Borough Council,6/22/2022,0011044501/1,11044501, 309.23,KCS,00054200,,Estate Management Charge,Land Review,D40PS000020400,
http://statistics.data.gov.uk/id/local-authority/29UP,Tonbridge & Malling Borough Council,6/22/2022,0011044502/1,11044502, 332.41,KCS,00054200,,Electricity,Buildings,D21FEDD5021002,
http://statistics.data.gov.uk/id/local-authority/29UP,Tonbridge & Malling Borough Council,6/22/2022,0011044502/2,11044502, 2500.00,KCS,00054200,,Payment re Prev Yrs Cred Acc,Sundry Creditors Admin & Prop,J80TA000001101,
http://statistics.data.gov.uk/id/local-authority/29UP,Tonbridge & Malling Borough Council,6/22/2022,0011044503/1,11044503, 197.02,Scottish Water Business Stream Ltd,01641100,,Estate Management Charge,Land Review,D40PS000020400,
http://statistics.data.gov.uk/id/local-authority/29UP,Tonbridge & Malling Borough Council,6/22/2022,0011044504/1,11044504, 5024.00,KCS,00054200,,Gas,Buildings,D21FEDD1021003,
http://statistics.data.gov.uk/id/local-authority/29UP,Tonbridge & Malling Borough Council,6/22/2022,0011044505/1,11044505, 6213.07,KCS,00054200,,Electricity,Buildings,D21FEDD1021002,
http://statistics.data.gov.uk/id/local-authority/29UP,Tonbridge & Malling Borough Council,6/22/2022,0011044506/1,11044506, 4580.64,KCS,00054200,,Electricity,Buildings,D21FEDD5021002,
http://statistics.data.gov.uk/id/local-authority/29UP,Tonbridge & Malling Borough Council,6/22/2022,0011044508/1,11044508, 1912.86,Royal Mail,00086200,,Purchases,Mailsort Stock Account,K37BR000001002,
http://statistics.data.gov.uk/id/local-authority/29UP,Tonbridge & Malling Borough Council,6/22/2022,0011044508/2,11044508, 1.75,Royal Mail,00086200,,Purchases,Mailsort Stock Account,K37BR000001002,
http://statistics.data.gov.uk/id/local-authority/29UP,Tonbridge & Malling Borough Council,6/22/2022,0011044509/1,11044509, 43.14,Atlas Facilities Managment Limited ,01075900,,Miscellaneous Services,Cleaning & Security,D21FDDD6044015,
http://statistics.data.gov.uk/id/local-authority/29UP,Tonbridge & Malling Borough Council,6/22/2022,0011044510/1,11044510, 20.42,B&Q/Screwfix Direct(TradeUKAccount),00141300,,Cleaning & Domestic Supplies,Cleaning & Security,D21FD000026001,
http://statistics.data.gov.uk/id/local-authority/29UP,Tonbridge & Malling Borough Council,6/22/2022,0011044511/1,11044511, 107.99,Prosec General Security Ltd,00810600,,Office Security,Ton Castle Council Chamber,D21FC000044047,
http://statistics.data.gov.uk/id/local-authority/29UP,Tonbridge & Malling Borough Council,6/22/2022,0011044511/2,11044511, 1036.13,Prosec General Security Ltd,00810600,,Office Security,Cleaning & Security,D21FD000044047,
http://statistics.data.gov.uk/id/local-authority/29UP,Tonbridge & Malling Borough Council,6/22/2022,0011044511/3,11044511, 2868.75,Prosec General Security Ltd,00810600,,Office Security,Tonbridge Gateway,D23TG000044047,
http://statistics.data.gov.uk/id/local-authority/29UP,Tonbridge & Malling Borough Council,6/22/2022,0011044512/1,11044512, 200.00,Driven to perfection,01541000,,Mayors Transport Allowance,Mayoral & Other Member Support,D29LX000034111,
http://statistics.data.gov.uk/id/local-authority/29UP,Tonbridge & Malling Borough Council,6/22/2022,0011044513/3,11044513, 344.83,Initial Washroom Hygiene,00048300,,Laundry - Roller Towels,Cleaning & Security,D21FD000042003,
http://statistics.data.gov.uk/id/local-authority/29UP,Tonbridge & Malling Borough Council,6/22/2022,0011044514/3,11044514, 1425.00,Cornerstones Barristers,01359100,,Other Planning Enq - Legal Cos,Legal Sals&Overheads,D01ARDR0044146,
http://statistics.data.gov.uk/id/local-authority/29UP,Tonbridge & Malling Borough Council,6/22/2022,0011044515/1,11044515, 527.00,Thomson Snell & Passmore,00101700,,Legal Fees,Legal Sals&Overheads,D01ARDR0044002,
http://statistics.data.gov.uk/id/local-authority/29UP,Tonbridge & Malling Borough Council,6/22/2022,0011044516/1,11044516, 17500.00,Snodland Town Council,00092700,,Payment re Prev Yrs Cred Acc,Sundry Creditors Admin & Prop,J80TA000001101,
http://statistics.data.gov.uk/id/local-authority/29UP,Tonbridge & Malling Borough Council,6/22/2022,0011044517/1,11044517, 3000.00,Westco Communications/Westco Trading Ltd,01844400,,Consultancy Fees,Personnel Sals&Overheads,D01ABDB0044011,
http://statistics.data.gov.uk/id/local-authority/29UP,Tonbridge & Malling Borough Council,6/22/2022,0011044518/1,11044518, 5000.00,REDACTED PERSONAL DATA,01852600,,BRREP General Maintenance,Shops & Maisonettes,M15NAP10001900,
http://statistics.data.gov.uk/id/local-authority/29UP,Tonbridge & Malling Borough Council,6/22/2022,0011044519/1,11044519, 1217.80,Sellick Partnership Group Limited,01336800,,Temporary Staff,Legal Sals&Overheads,D01ARDR0011300,
http://statistics.data.gov.uk/id/local-authority/29UP,Tonbridge & Malling Borough Council,6/22/2022,0011044520/1,11044520, 279.00,Harper Collins Publishers,01787600,,Purchases,TIC Stock Account,K18AX000001002,
http://statistics.data.gov.uk/id/local-authority/29UP,Tonbridge & Malling Borough Council,6/22/2022,0011044521/1,11044521, 644.11,TimeLine Gifts Ltd,00650200,,Purchases,TIC Stock Account,K18AX000001002,
http://statistics.data.gov.uk/id/local-authority/29UP,Tonbridge & Malling Borough Council,6/22/2022,0011044528/1,11044528, 1897.50,Willow Pumps Ltd,00114100,,BRREP Servicing - Pumping Stn,Ton Sportsgrnd Bldgs / Toilets,M15HCP20001931,110069285
http://statistics.data.gov.uk/id/local-authority/29UP,Tonbridge & Malling Borough Council,6/22/2022,0011044529/1,11044529, 3211.60,Versatile Consultants Ltd,01763700,,BRREP Response - General,Tonbridge Castle / CAB,M15KFP50001997,110069386
http://statistics.data.gov.uk/id/local-authority/29UP,Tonbridge & Malling Borough Council,6/22/2022,0011044530/1,11044530, 822.27,Chubb Fire & Security Ltd,00115400,174605362,BRREP Servicing-IntruderAlarm,Leis Man Poult Wood Golf Centr,M15HEP20001939,110069612
http://statistics.data.gov.uk/id/local-authority/29UP,Tonbridge & Malling Borough Council,6/22/2022,0011044531/1,11044531, 528.00,Hadene Engineering Ltd,00041900,,BRREP Servicing - boilers,Larkfield Leisure Centre,M15HDP20001929,110069607
http://statistics.data.gov.uk/id/local-authority/29UP,Tonbridge & Malling Borough Council,6/22/2022,0011044532/1,11044532, 9030.47,Broadwater Technologies,01534500,,BRREP Servicing - pool plant,Tonbridge Swimming Pool,M15HBP20001910,110068976
http://statistics.data.gov.uk/id/local-authority/29UP,Tonbridge & Malling Borough Council,6/22/2022,0011044533/1,11044533, 474.00,BML Building Services Ltd,01505000,,BRREP Response - General,Tonbridge Castle / CAB,M15KFP50001997,110069572
http://statistics.data.gov.uk/id/local-authority/29UP,Tonbridge & Malling Borough Council,6/22/2022,0011044534/1,11044534, 440.00,G C Industrial Heating Services,00578100,,Other Expenses,Homeless Accommodation,P03AX000009908,110069602
http://statistics.data.gov.uk/id/local-authority/29UP,Tonbridge & Malling Borough Council,6/22/2022,0011044535/1,11044535, 1220.00,G C Industrial Heating Services,00578100,,BRREP Plant renewals,Larkfield Leisure Centre,M15HDP20001909,110069617
http://statistics.data.gov.uk/id/local-authority/29UP,Tonbridge & Malling Borough Council,6/22/2022,0011044536/1,11044536, 720.00,G C Industrial Heating Services,00578100,,BRREP Servicing - Heating Syst,Tonbridge Swimming Pool,M15HBP20001934,110069492
http://statistics.data.gov.uk/id/local-authority/29UP,Tonbridge & Malling Borough Council,6/22/2022,0011044537/1,11044537, 1420.00,G C Industrial Heating Services,00578100,,BRREP Servicing - pool plant,Larkfield Leisure Centre,M15HDP20001910,110069621
http://statistics.data.gov.uk/id/local-authority/29UP,Tonbridge & Malling Borough Council,6/22/2022,0011044538/3,11044538, 244.00,Premier Group Recycling Ltd,01365300,,Confidential Waste,Cleaning & Security,D21FD000044009,
http://statistics.data.gov.uk/id/local-authority/29UP,Tonbridge & Malling Borough Council,6/22/2022,0011044539/3,11044539, 155.00,Record UK Ltd,01116900,,BRREP Servicing-entrance doors,Larkfield Leisure Centre,M15HDP20001927,
http://statistics.data.gov.uk/id/local-authority/29UP,Tonbridge & Malling Borough Council,6/22/2022,0011044540/3,11044540, 1462.38,KCS,00054200,,Gas,Buildings,D21FEDD6021003,
http://statistics.data.gov.uk/id/local-authority/29UP,Tonbridge & Malling Borough Council,6/22/2022,0011044541/3,11044541, 350.50,Record UK Ltd,01116900,,BRREP Servicing-entrance doors,Tonbridge Swimming Pool,M15HBP20001927,
http://statistics.data.gov.uk/id/local-authority/29UP,Tonbridge & Malling Borough Council,6/22/2022,0011044542/3,11044542, 133.00,NKM Fire Protection Ltd,01784600,,BRREP Servicing - FireAlarmSys,Tonbridge Swimming Pool,M15HBP20001937,
http://statistics.data.gov.uk/id/local-authority/29UP,Tonbridge & Malling Borough Council,6/22/2022,0011044543/3,11044543, 530.00,G C Industrial Heating Services,00578100,,BRREP Plant renewals,Tonbridge Swimming Pool,M15HBP20001909,
http://statistics.data.gov.uk/id/local-authority/29UP,Tonbridge & Malling Borough Council,6/22/2022,0011044544/3,11044544, 283.43,KCS,00054200,,Estate Management Charge,Land Review,D40PS000020400,
http://statistics.data.gov.uk/id/local-authority/29UP,Tonbridge & Malling Borough Council,6/22/2022,0011044545/3,11044545, 2606.35,KCS,00054200,,Gas,Buildings,D21FEDD1021003,
http://statistics.data.gov.uk/id/local-authority/29UP,Tonbridge & Malling Borough Council,6/22/2022,0011044546/3,11044546, 822.30,KCS,00054200,,Gas,Buildings,D21FEDD6021003,
http://statistics.data.gov.uk/id/local-authority/29UP,Tonbridge & Malling Borough Council,6/22/2022,0011044547/3,11044547, 2965.79,KCS,00054200,,Electricity,Buildings,D21FEDD6021002,
http://statistics.data.gov.uk/id/local-authority/29UP,Tonbridge & Malling Borough Council,6/22/2022,0011044548/3,11044548, 1130.11,Royal Mail,00086200,,Purchases,Mailsort Stock Account,K37BR000001002,
http://statistics.data.gov.uk/id/local-authority/29UP,Tonbridge & Malling Borough Council,6/22/2022,0011044548/4,11044548, 16.27,Royal Mail,00086200,,Purchases,Mailsort Stock Account,K37BR000001002,
http://statistics.data.gov.uk/id/local-authority/29UP,Tonbridge & Malling Borough Council,6/22/2022,0011044549/3,11044549, 506.66,Chubb Fire & Security Ltd,00115400,174605362,BRREP Servicing-IntruderAlarm,Tonbridge Swimming Pool,M15HBP20001939,
http://statistics.data.gov.uk/id/local-authority/29UP,Tonbridge & Malling Borough Council,6/22/2022,0011044550/3,11044550, 2965.28,KCS,00054200,,Electricity,Buildings,D21FEDD5021002,
http://statistics.data.gov.uk/id/local-authority/29UP,Tonbridge & Malling Borough Council,6/22/2022,0011044551/3,11044551, 1616.53,KCS,00054200,,Gas,Buildings,D21FEDD6021003,
http://statistics.data.gov.uk/id/local-authority/29UP,Tonbridge & Malling Borough Council,6/22/2022,0011044552/3,11044552, 5686.66,KCS,00054200,,Electricity,Buildings,D21FEDD1021002,
http://statistics.data.gov.uk/id/local-authority/29UP,Tonbridge & Malling Borough Council,6/22/2022,0011044553/3,11044553, 366.00,BML Building Services Ltd,01505000,,BRREP Response - General,Pleasure Grounds & Open Spaces,M15HHP50001997,
http://statistics.data.gov.uk/id/local-authority/29UP,Tonbridge & Malling Borough Council,6/22/2022,0011044554/3,11044554, 1090.56,Venn Group Ltd,00914300,,Temporary Staff,Legal Sals&Overheads,D01ARDR0011300,
http://statistics.data.gov.uk/id/local-authority/29UP,Tonbridge & Malling Borough Council,6/22/2022,0011044557/3,11044557, 722.00,Canon (UK) Limited,00298700,,Purchases - Paper,Printing,D22GA000040102,
http://statistics.data.gov.uk/id/local-authority/29UP,Tonbridge & Malling Borough Council,6/22/2022,0011044558/3,11044558, 2670.86,Royal Mail,00086200,,Purchases,Mailsort Stock Account,K37BR000001002,
http://statistics.data.gov.uk/id/local-authority/29UP,Tonbridge & Malling Borough Council,6/22/2022,0011044558/4,11044558, 17.08,Royal Mail,00086200,,Purchases,Mailsort Stock Account,K37BR000001002,
http://statistics.data.gov.uk/id/local-authority/29UP,Tonbridge & Malling Borough Council,6/22/2022,0011044558/5,11044558, 1.75,Royal Mail,00086200,,Purchases,Mailsort Stock Account,K37BR000001002,
http://statistics.data.gov.uk/id/local-authority/29UP,Tonbridge & Malling Borough Council,6/22/2022,0011044559/1,11044559, 5000.00,Civils Ltd,01852900,,Economic Development & Regen,Eco Dev & Reg Gen Bus Support,D52TD000047027,
http://statistics.data.gov.uk/id/local-authority/29UP,Tonbridge & Malling Borough Council,6/22/2022,0012008380/10,12008380, 9.00,O2 UK Ltd,01268000,,Mobile Telephones,Admin & Prop Sals&Overheads,D01AADA1245013,
http://statistics.data.gov.uk/id/local-authority/29UP,Tonbridge & Malling Borough Council,6/22/2022,0012008380/11,12008380, 3.00,O2 UK Ltd,01268000,,Mobile Telephones,Chief Exec Sals&Overheads,D01ACDC0045013,
http://statistics.data.gov.uk/id/local-authority/29UP,Tonbridge & Malling Borough Council,6/22/2022,0012008380/12,12008380, 3.00,O2 UK Ltd,01268000,,Mobile Telephones,Chief Exec Sals&Overheads,D01ACDC0145013,
http://statistics.data.gov.uk/id/local-authority/29UP,Tonbridge & Malling Borough Council,6/22/2022,0012008380/13,12008380, 3.00,O2 UK Ltd,01268000,,Mobile Telephones,Chief Exec Sals&Overheads,D01ACDC0245013,
http://statistics.data.gov.uk/id/local-authority/29UP,Tonbridge & Malling Borough Council,6/22/2022,0012008380/14,12008380, 3.00,O2 UK Ltd,01268000,,Mobile Telephones,Technical Sals&Overheads,D01AEDE0045013,
http://statistics.data.gov.uk/id/local-authority/29UP,Tonbridge & Malling Borough Council,6/22/2022,0012008380/15,12008380, 6.00,O2 UK Ltd,01268000,,Mobile Telephones,Technical Sals&Overheads,D01AEDE0145013,
http://statistics.data.gov.uk/id/local-authority/29UP,Tonbridge & Malling Borough Council,6/22/2022,0012008380/16,12008380, 9.00,O2 UK Ltd,01268000,,Mobile Telephones,Technical Sals&Overheads,D01AEDE0245013,
http://statistics.data.gov.uk/id/local-authority/29UP,Tonbridge & Malling Borough Council,6/22/2022,0012008380/17,12008380, 43.19,O2 UK Ltd,01268000,,Mobile Telephones,Technical Sals&Overheads,D01AEDE0445013,
http://statistics.data.gov.uk/id/local-authority/29UP,Tonbridge & Malling Borough Council,6/22/2022,0012008380/18,12008380, 3.00,O2 UK Ltd,01268000,,Mobile Telephones,Technical Sals&Overheads,D01AEDE0545013,
http://statistics.data.gov.uk/id/local-authority/29UP,Tonbridge & Malling Borough Council,6/22/2022,0012008380/19,12008380, 12.00,O2 UK Ltd,01268000,,Mobile Telephones,Finance Sals&Overheads,D01AFDF0045013,
http://statistics.data.gov.uk/id/local-authority/29UP,Tonbridge & Malling Borough Council,6/22/2022,0012008380/20,12008380, 6.00,O2 UK Ltd,01268000,,Mobile Telephones,Finance Sals&Overheads,D01AFDF0945013,
http://statistics.data.gov.uk/id/local-authority/29UP,Tonbridge & Malling Borough Council,6/22/2022,0012008380/21,12008380, 12.00,O2 UK Ltd,01268000,,Mobile Telephones,St Scene & Leis Sals&Overheads,D01AGDG0045013,
http://statistics.data.gov.uk/id/local-authority/29UP,Tonbridge & Malling Borough Council,6/22/2022,0012008380/22,12008380, 16.55,O2 UK Ltd,01268000,,Mobile Telephones,St Scene & Leis Sals&Overheads,D01AGDG0145013,
http://statistics.data.gov.uk/id/local-authority/29UP,Tonbridge & Malling Borough Council,6/22/2022,0012008380/23,12008380, 9.20,O2 UK Ltd,01268000,,Mobile Telephones,St Scene & Leis Sals&Overheads,D01AGDG0445013,
http://statistics.data.gov.uk/id/local-authority/29UP,Tonbridge & Malling Borough Council,6/22/2022,0012008380/24,12008380, 33.20,O2 UK Ltd,01268000,,Mobile Telephones,St Scene & Leis Sals&Overheads,D01AGDG2045013,
http://statistics.data.gov.uk/id/local-authority/29UP,Tonbridge & Malling Borough Council,6/22/2022,0012008380/25,12008380, 9.00,O2 UK Ltd,01268000,,Mobile Telephones,Planning Sals&Overheads,D01AJDJ0045013,
http://statistics.data.gov.uk/id/local-authority/29UP,Tonbridge & Malling Borough Council,6/22/2022,0012008380/26,12008380, 12.20,O2 UK Ltd,01268000,,Mobile Telephones,Planning Sals&Overheads,D01AJDJ0245013,
http://statistics.data.gov.uk/id/local-authority/29UP,Tonbridge & Malling Borough Council,6/22/2022,0012008380/27,12008380, 6.00,O2 UK Ltd,01268000,,Mobile Telephones,Legal Sals&Overheads,D01ARDR0045013,
http://statistics.data.gov.uk/id/local-authority/29UP,Tonbridge & Malling Borough Council,6/22/2022,0012008380/28,12008380, 12.00,O2 UK Ltd,01268000,,Mobile Telephones,Legal Sals&Overheads,D01ARDR0445013,
http://statistics.data.gov.uk/id/local-authority/29UP,Tonbridge & Malling Borough Council,6/22/2022,0012008380/29,12008380, 3.00,O2 UK Ltd,01268000,,Mobile Telephones,Legal Sals&Overheads,D01ARDR0745013,
http://statistics.data.gov.uk/id/local-authority/29UP,Tonbridge & Malling Borough Council,6/22/2022,0012008380/30,12008380, 3.00,O2 UK Ltd,01268000,,Mobile Telephones,Env Hlth & Hsg Sals&Overheads,D01AVDV0045013,
http://statistics.data.gov.uk/id/local-authority/29UP,Tonbridge & Malling Borough Council,6/22/2022,0012008380/31,12008380, 9.00,O2 UK Ltd,01268000,,Mobile Telephones,Env Hlth & Hsg Sals&Overheads,D01AVDV0145013,
http://statistics.data.gov.uk/id/local-authority/29UP,Tonbridge & Malling Borough Council,6/22/2022,0012008380/32,12008380, 6.00,O2 UK Ltd,01268000,,Mobile Telephones,Env Hlth & Hsg Sals&Overheads,D01AVDV0345013,
http://statistics.data.gov.uk/id/local-authority/29UP,Tonbridge & Malling Borough Council,6/22/2022,0012008380/33,12008380, 3.05,O2 UK Ltd,01268000,,Mobile Telephones,Env Hlth & Hsg Sals&Overheads,D01AVDV0745013,
http://statistics.data.gov.uk/id/local-authority/29UP,Tonbridge & Malling Borough Council,6/22/2022,0012008380/34,12008380, 6.00,O2 UK Ltd,01268000,,Mobile Telephones,Env Hlth & Hsg Sals&Overheads,D01AVDV0945013,
http://statistics.data.gov.uk/id/local-authority/29UP,Tonbridge & Malling Borough Council,6/22/2022,0012008380/35,12008380, 10.10,O2 UK Ltd,01268000,,Mobile Telephones,Customer Services,D23CS000045013,
http://statistics.data.gov.uk/id/local-authority/29UP,Tonbridge & Malling Borough Council,6/22/2022,0012008380/36,12008380, 3.00,O2 UK Ltd,01268000,,Mobile Telephones,Tonbridge Gateway,D23TG000045013,
http://statistics.data.gov.uk/id/local-authority/29UP,Tonbridge & Malling Borough Council,6/22/2022,0012008380/37,12008380, 627.00,O2 UK Ltd,01268000,,Leased Lines & Modems,Information Technology,D27KD000045011,
http://statistics.data.gov.uk/id/local-authority/29UP,Tonbridge & Malling Borough Council,6/22/2022,0012008380/38,12008380, 3.00,O2 UK Ltd,01268000,,Mobile Telephones,Mayoral & Other Member Support,D29LX000045013,
http://statistics.data.gov.uk/id/local-authority/29UP,Tonbridge & Malling Borough Council,6/22/2022,0012008380/39,12008380, 3.00,O2 UK Ltd,01268000,,Emergency Out of Hours Recharg,Refuse Collection,H20SA000045030,
http://statistics.data.gov.uk/id/local-authority/29UP,Tonbridge & Malling Borough Council,6/22/2022,0012008380/40,12008380, 3.00,O2 UK Ltd,01268000,,Emergency Out of Hours Recharg,Street Scene,H23SD000045030,
http://statistics.data.gov.uk/id/local-authority/29UP,Tonbridge & Malling Borough Council,6/22/2022,0012008380/7,12008380, 3.00,O2 UK Ltd,01268000,,Telephones - General,Open Spaces & Amenity Areas,B22LE000045010,
http://statistics.data.gov.uk/id/local-authority/29UP,Tonbridge & Malling Borough Council,6/22/2022,0012008380/8,12008380, 6.00,O2 UK Ltd,01268000,,Mobile Telephones,Admin & Prop Sals&Overheads,D01AADA0045013,
http://statistics.data.gov.uk/id/local-authority/29UP,Tonbridge & Malling Borough Council,6/22/2022,0012008380/9,12008380, 3.10,O2 UK Ltd,01268000,,Mobile Telephones,Admin & Prop Sals&Overheads,D01AADA1045013,
http://statistics.data.gov.uk/id/local-authority/29UP,Tonbridge & Malling Borough Council,6/22/2022,0012008381/1,12008381, 119.97,CCS Media Ltd,00018000,,Purchases,Information Technology,D27KD000040101,410032210
http://statistics.data.gov.uk/id/local-authority/29UP,Tonbridge & Malling Borough Council,6/22/2022,0012008381/2,12008381, 314.93,CCS Media Ltd,00018000,,Purchases,Information Technology,D27KD000040101,410032210
http://statistics.data.gov.uk/id/local-authority/29UP,Tonbridge & Malling Borough Council,6/22/2022,0012008381/3,12008381, 9.95,CCS Media Ltd,00018000,,Delivery Expenses,Information Technology,D27KD000044069,410032210
http://statistics.data.gov.uk/id/local-authority/29UP,Tonbridge & Malling Borough Council,6/22/2022,0012008382/1,12008382, 77.98,CCS Media Ltd,00018000,,Purchases,Information Technology,D27KD000040101,410032210
http://statistics.data.gov.uk/id/local-authority/29UP,Tonbridge & Malling Borough Council,6/22/2022,0012008383/1,12008383, 80.00,WorldPay Ltd,01402000,991280207,Credit Card Commission,Banking Arrangements,D43QK000044082,
http://statistics.data.gov.uk/id/local-authority/29UP,Tonbridge & Malling Borough Council,6/22/2022,0012008383/2,12008383, 61.52,WorldPay Ltd,01402000,991280207,Credit Card Commission,Banking Arrangements,D43QK000044082,
http://statistics.data.gov.uk/id/local-authority/29UP,Tonbridge & Malling Borough Council,6/22/2022,0012008383/3,12008383, 0.48,WorldPay Ltd,01402000,991280207,Credit Card Commission,Banking Arrangements,D43QK000044082,
http://statistics.data.gov.uk/id/local-authority/29UP,Tonbridge & Malling Borough Council,6/22/2022,0012008384/3,12008384, 152.01,British Telecommunications Plc,00012800,,Telephones - Rentals,General Admin Telephones,D24GT000045005,
http://statistics.data.gov.uk/id/local-authority/29UP,Tonbridge & Malling Borough Council,6/22/2022,0021037978/1,21037978, 8.00,B&Q/Screwfix Direct(TradeUKAccount),00141300,,Maintenance of Grounds,Haysden Country Park,B22LC000020402,
http://statistics.data.gov.uk/id/local-authority/29UP,Tonbridge & Malling Borough Council,6/22/2022,0021037979/3,21037979, 64.09,Initial Washroom Hygiene,00048300,,Cleaning & Domestic Supplies,Haysden Country Park,B22LC000026001,
http://statistics.data.gov.uk/id/local-authority/29UP,Tonbridge & Malling Borough Council,6/22/2022,0021037980/1,21037980, 360.00,DSSL Group Ltd,01839500,,Maintenance - General,Security Services Management,E09GA000040135,310042819
http://statistics.data.gov.uk/id/local-authority/29UP,Tonbridge & Malling Borough Council,6/22/2022,0021037981/1,21037981, 11.50,South East Water Ltd,00572200,,Maintenance of Grounds,Haysden Country Park,B22LC000020402,210056768
http://statistics.data.gov.uk/id/local-authority/29UP,Tonbridge & Malling Borough Council,6/22/2022,0021037982/1,21037982, 1432.00,REDACTED PERSONAL DATA,01649000,,Economic Dev Inititatives,Eco Dev & Reg Gen Bus Support,D52TD000047025,210056819
http://statistics.data.gov.uk/id/local-authority/29UP,Tonbridge & Malling Borough Council,6/22/2022,0021037983/3,21037983, 294.23,B&Q/Screwfix Direct(TradeUKAccount),00141300,,Maintenance of Grounds,Haysden Country Park,B22LC000020402,
http://statistics.data.gov.uk/id/local-authority/29UP,Tonbridge & Malling Borough Council,6/22/2022,0021037984/1,21037984, 365.00,Arnold & Court Ltd,01411300,,Maintenance of Grounds,Sports Grounds,B13ET000020402,210056738
http://statistics.data.gov.uk/id/local-authority/29UP,Tonbridge & Malling Borough Council,6/22/2022,0021037985/1,21037985, 560.00,Arnold & Court Ltd,01411300,,Maintenance of Grounds,Open Spaces & Amenity Areas,B22LE000020402,210056795
http://statistics.data.gov.uk/id/local-authority/29UP,Tonbridge & Malling Borough Council,6/22/2022,0021037988/1,21037988, 685.66,Atlas Facilities Managment Limited ,01075900,,Gates / Security,Patrolling,B22LF000044017,210056716
http://statistics.data.gov.uk/id/local-authority/29UP,Tonbridge & Malling Borough Council,6/22/2022,0021037989/1,21037989, 35.00,Weddle and Co,00714900,,Maintenance of Grounds,Haysden Country Park,B22LC000020402,210056809
http://statistics.data.gov.uk/id/local-authority/29UP,Tonbridge & Malling Borough Council,6/22/2022,0021037990/3,21037990, 332.28,KCC - L.A.S.E.R Commercial Services ,00184300,,Electricity,Tonbridge Castle Grounds,B22LB000021002,
http://statistics.data.gov.uk/id/local-authority/29UP,Tonbridge & Malling Borough Council,6/22/2022,0021037991/3,21037991, 532.95,KCC - L.A.S.E.R Commercial Services ,00184300,,Electricity,Cemetery,B26MP000021002,
http://statistics.data.gov.uk/id/local-authority/29UP,Tonbridge & Malling Borough Council,6/22/2022,0021037992/3,21037992, 125.25,KCC - L.A.S.E.R Commercial Services ,00184300,,Electricity,Cemetery,B26MP000021002,
http://statistics.data.gov.uk/id/local-authority/29UP,Tonbridge & Malling Borough Council,6/22/2022,0022026742/1,22026742, 3977.96,The Lifecare Centre Ltd,00907100,,Other Expenses,Disabled Facilities Grant Mand,P03AC000009908,
http://statistics.data.gov.uk/id/local-authority/29UP,Tonbridge & Malling Borough Council,6/22/2022,0022026743/1,22026743, 656.74,Peabody South East LTD,01680900,,Opening Balance,Disabled Facilities Grant Mand,P03AC000000000,
http://statistics.data.gov.uk/id/local-authority/29UP,Tonbridge & Malling Borough Council,6/22/2022,0022026744/1,22026744, 5689.08,Alfa Electrical LTD Inc AVCO Maintenance,01642200,,Other Expenses,Disabled Facilities Grant Mand,P03AC000009908,
http://statistics.data.gov.uk/id/local-authority/29UP,Tonbridge & Malling Borough Council,6/22/2022,0022026745/1,22026745, 819.23,Peabody South East LTD,01680900,,Other Expenses,Disabled Facilities Grant Mand,P03AC000009908,
http://statistics.data.gov.uk/id/local-authority/29UP,Tonbridge & Malling Borough Council,6/22/2022,0022026746/3,22026746, 4645.60,Countrystyle Group,00835900,781981681,Plastic Recycling,Dry Recycling,H34SR000054019,
http://statistics.data.gov.uk/id/local-authority/29UP,Tonbridge & Malling Borough Council,6/22/2022,0022026747/3,22026747, 490.00,Countrystyle Group,00835900,781981681,Collection of Card,Dry Recycling,H34SR000054008,
http://statistics.data.gov.uk/id/local-authority/29UP,Tonbridge & Malling Borough Council,6/22/2022,0022026748/3,22026748, 245.00,Countrystyle Group,00835900,781981681,Collection of Card,Dry Recycling,H34SR000054008,
http://statistics.data.gov.uk/id/local-authority/29UP,Tonbridge & Malling Borough Council,6/22/2022,0022026749/1,22026749, 13860.00,Craemer UK LTD,01616400,,Initial Furniture & Equipment,Refuse Bins Growth/Replacement,P02DA000009906,220003229
http://statistics.data.gov.uk/id/local-authority/29UP,Tonbridge & Malling Borough Council,6/22/2022,0022026750/1,22026750, 5639.04,Straight Plc,01029400,,Initial Furniture & Equipment,Green Waste Bin Growth/Replace,P02BC000009906,210056796
http://statistics.data.gov.uk/id/local-authority/29UP,Tonbridge & Malling Borough Council,6/22/2022,0022026751/1,22026751, 573.00,Town & Country Housing Group,01385400,,Countywide DFG Project,Private Sector Housing Renewal,C03BD000044031,
http://statistics.data.gov.uk/id/local-authority/29UP,Tonbridge & Malling Borough Council,6/22/2022,0022026753/3,22026753, 298.21,British Gas,01148500,,Electricity,Homelessness,C01AA000021002,
http://statistics.data.gov.uk/id/local-authority/29UP,Tonbridge & Malling Borough Council,6/22/2022,0022026754/3,22026754, 233.28,KCC - L.A.S.E.R Commercial Services ,00184300,,Electricity,Public Conveniences,H22SCH00421002,
http://statistics.data.gov.uk/id/local-authority/29UP,Tonbridge & Malling Borough Council,6/22/2022,0022026760/1,22026760, 183.41,Sevenoaks District Council,00089300,,Healthy Living Initiatives,Public Health - Healthy Living,H40SYVH0048145,220003242
http://statistics.data.gov.uk/id/local-authority/29UP,Tonbridge & Malling Borough Council,6/22/2022,0022026761/1,22026761, 1221.00,G2 Recruitment Solutions,01786000,,Temporary Staff,Env Hlth & Hsg Sals&Overheads,D01AVDV0711300,
http://statistics.data.gov.uk/id/local-authority/29UP,Tonbridge & Malling Borough Council,6/22/2022,0022026762/1,22026762, 1225.67,G2 Recruitment Solutions,01786000,,Temporary Staff,Env Hlth & Hsg Sals&Overheads,D01AVDV0711300,
http://statistics.data.gov.uk/id/local-authority/29UP,Tonbridge & Malling Borough Council,6/22/2022,0022026763/1,22026763, 1239.17,Vivid Resourcing,01773700,,Temporary Staff,Env Hlth & Hsg Sals&Overheads,D01AVDV0711300,
http://statistics.data.gov.uk/id/local-authority/29UP,Tonbridge & Malling Borough Council,6/22/2022,0022026764/1,22026764, 1673.08,Orchard Castle Services Ltd,01852800,,Rent Deposit / Rent in Advance,Homelessness,C01AAC85444093,
http://statistics.data.gov.uk/id/local-authority/29UP,Tonbridge & Malling Borough Council,6/22/2022,0022026766/1,22026766, 212.00,Specialist Hygiene Services,01466100,,Maintenance - General,Haysden Country Park,B22LC000040135,
http://statistics.data.gov.uk/id/local-authority/29UP,Tonbridge & Malling Borough Council,6/22/2022,0022026766/2,22026766, 4973.00,Specialist Hygiene Services,01466100,,Contract Payments,Public Conveniences,H22SC000054001,
http://statistics.data.gov.uk/id/local-authority/29UP,Tonbridge & Malling Borough Council,6/22/2022,0031018705/1,31018705, 245.00,Lemon Drainage Services LTD,01761600,,Sewerage Charges,Haysden Country Park,B22LC000024003,210056816
http://statistics.data.gov.uk/id/local-authority/29UP,Tonbridge & Malling Borough Council,6/22/2022,0031018706/3,31018706, 1260.00,Sevenoaks District Council,00089300,,Out of Hours Service,Civil Contingencies,D33NA000045025,
http://statistics.data.gov.uk/id/local-authority/29UP,Tonbridge & Malling Borough Council,6/22/2022,0031018707/1,31018707, 2735.51,DSSL Group Ltd,01839500,,Contract Payments,Cap Ren CCTV,P01BA000009904,310042826
http://statistics.data.gov.uk/id/local-authority/29UP,Tonbridge & Malling Borough Council,6/22/2022,0031018708/1,31018708, 2735.51,DSSL Group Ltd,01839500,,Contract Payments,Cap Ren CCTV,P01BA000009904,310042825
http://statistics.data.gov.uk/id/local-authority/29UP,Tonbridge & Malling Borough Council,6/22/2022,0031018709/1,31018709, 200.00,Arnold & Court Ltd,01411300,,Maintenance of Grounds,Countryside/Woodland Mgt,B22LGCARP20402,210056747
http://statistics.data.gov.uk/id/local-authority/29UP,Tonbridge & Malling Borough Council,6/22/2022,0031018710/1,31018710, 250.00,Arnold & Court Ltd,01411300,,Bridge Maintenance,Open Spaces & Amenity Areas,B22LE000020505,310042818
http://statistics.data.gov.uk/id/local-authority/29UP,Tonbridge & Malling Borough Council,6/22/2022,0031018710/2,31018710, 200.00,Arnold & Court Ltd,01411300,,Winter Maintenance,Parking Off-Street,E10HA000020701,310042818
http://statistics.data.gov.uk/id/local-authority/29UP,Tonbridge & Malling Borough Council,6/22/2022,0031018711/1,31018711, 1250.00,Arnold & Court Ltd,01411300,,Premises Repairs & Maintenance,Parking Off-Street,E10HA000020601,310042820
http://statistics.data.gov.uk/id/local-authority/29UP,Tonbridge & Malling Borough Council,6/22/2022,0031018712/1,31018712, 132.00,Arnold & Court Ltd,01411300,,Electricity,Open Spaces & Amenity Areas,B22LE000021002,310042824
http://statistics.data.gov.uk/id/local-authority/29UP,Tonbridge & Malling Borough Council,6/22/2022,0031018712/2,31018712, 1760.00,Arnold & Court Ltd,01411300,,Premises Repairs & Maintenance,Parking Off-Street,E10HA000020601,310042824
http://statistics.data.gov.uk/id/local-authority/29UP,Tonbridge & Malling Borough Council,6/22/2022,0031018712/3,31018712, 308.00,Arnold & Court Ltd,01411300,,BRREP Servicing - ext lighting,Kings Hill Offices - Ext Areas,M15KAP20001941,310042824
http://statistics.data.gov.uk/id/local-authority/29UP,Tonbridge & Malling Borough Council,6/22/2022,0031018713/1,31018713, 400.00,Arnold & Court Ltd,01411300,,Contract Payments,Electric Veh Charging Points,P01EA000009904,310042827
http://statistics.data.gov.uk/id/local-authority/29UP,Tonbridge & Malling Borough Council,6/22/2022,0031018714/3,31018714, 14.13,REDACTED PERSONAL DATA,01576900,,Purchases,Parking Off-Street,E10HA000040101,
http://statistics.data.gov.uk/id/local-authority/29UP,Tonbridge & Malling Borough Council,6/22/2022,0031018714/4,31018714, 10.67,REDACTED PERSONAL DATA,01576900,,Purchases,Parking Off-Street,E10HA000040101,
http://statistics.data.gov.uk/id/local-authority/29UP,Tonbridge & Malling Borough Council,6/22/2022,0031018716/3,31018716, 1295.09,CDER Group,01773300,,Adjudication & Enforcement Ser,Parking Off-Street,E10HA000044230,
http://statistics.data.gov.uk/id/local-authority/29UP,Tonbridge & Malling Borough Council,6/22/2022,0031018718/1,31018718, 3266.98,Amey LG LTD,01324000,,Car Parking Action Plan,Parking On-Street,E10HD000020801,310042797
http://statistics.data.gov.uk/id/local-authority/29UP,Tonbridge & Malling Borough Council,6/22/2022,0032009616/1,32009616, 214.20,KM Media Group Ltd,00053900,,Advertising General,Development Management,A01ABZ99944216,320003418
http://statistics.data.gov.uk/id/local-authority/29UP,Tonbridge & Malling Borough Council,6/22/2022,0032009617/3,32009617, 2635.90,G2 Recruitment Solutions,01786000,,Temporary Staff,Planning Sals&Overheads,D01AJDJ0111300,
http://statistics.data.gov.uk/id/local-authority/29UP,Tonbridge & Malling Borough Council,6/22/2022,0032009618/3,32009618, 2692.32,G2 Recruitment Solutions,01786000,,Temporary Staff,Planning Sals&Overheads,D01AJDJ0111300,
http://statistics.data.gov.uk/id/local-authority/29UP,Tonbridge & Malling Borough Council,6/22/2022,0032009619/3,32009619, 2716.00,Vivid Resourcing,01773700,,Temporary Staff,Planning Sals&Overheads,D01AJDJ0111300,
http://statistics.data.gov.uk/id/local-authority/29UP,Tonbridge & Malling Borough Council,6/22/2022,0032009620/1,32009620, 2081.20,The Oyster Partnership,01196400,,Temporary Staff,Planning Sals&Overheads,D01AJDJ0111300,
http://statistics.data.gov.uk/id/local-authority/29UP,Tonbridge & Malling Borough Council,6/22/2022,0032009621/1,32009621, 1278.48,The Oyster Partnership,01196400,,Temporary Staff,Planning Sals&Overheads,D01AJDJ0111300,
http://statistics.data.gov.uk/id/local-authority/29UP,Tonbridge & Malling Borough Council,6/22/2022,0032009622/1,32009622, 7000.00,Highgate Planning & Development Ltd,01838600,,Application & Appeals,Development Management,A01AB000044194,320003422
http://statistics.data.gov.uk/id/local-authority/29UP,Tonbridge & Malling Borough Council,6/22/2022,0032009623/1,32009623, 3428.00,JBA Consulting,01599000,665300941,Development of Local Plan,Development of Local Plan,A01AE000044023,320003369
http://statistics.data.gov.uk/id/local-authority/29UP,Tonbridge & Malling Borough Council,6/22/2022,0032009624/1,32009624, 750.00,LLoyd Bore Ltd,01818500,,Professional Fees,Open Spaces & Amenity Areas,B22LE000044001,210056536
http://statistics.data.gov.uk/id/local-authority/29UP,Tonbridge & Malling Borough Council,6/22/2022,0032009625/1,32009625, 2708.75,Solve Web Media,01819500,,Professional Fees,Planning Policy,A01AFBORO44001,320003349
http://statistics.data.gov.uk/id/local-authority/29UP,Tonbridge & Malling Borough Council,6/22/2022,0032009626/1,32009626, 2440.08,CBA,01844700,,Development of Local Plan,Development of Local Plan,A01AE000044023,320003411
http://statistics.data.gov.uk/id/local-authority/29UP,Tonbridge & Malling Borough Council,6/22/2022,0041034406/3,41034406, 266.56,KH Recruitment Ltd,01738900,,Temporary Staff,Finance Sals&Overheads,D01AFDF1111300,
http://statistics.data.gov.uk/id/local-authority/29UP,Tonbridge & Malling Borough Council,6/22/2022,0041034407/3,41034407, 1391.56,The Oyster Partnership,01196400,,Temporary Staff,Finance Sals&Overheads,D01AFDF1111300,
http://statistics.data.gov.uk/id/local-authority/29UP,Tonbridge & Malling Borough Council,6/22/2022,0041034409/3,41034409, 516.46,KH Recruitment Ltd,01738900,,Temporary Staff,Finance Sals&Overheads,D01AFDF1111300,
http://statistics.data.gov.uk/id/local-authority/29UP,Tonbridge & Malling Borough Council,6/22/2022,0041034409/4,41034409, 491.47,KH Recruitment Ltd,01738900,,Temporary Staff,Finance Sals&Overheads,D01AFDF1111300,
http://statistics.data.gov.uk/id/local-authority/29UP,Tonbridge & Malling Borough Council,6/22/2022,0041034415/1,41034415, 3619.91,Maidstone Borough Council,01173700,,Bailiffs Commission,Local Revenue & NNDR Collect,D41QA000044075,
http://statistics.data.gov.uk/id/local-authority/29UP,Tonbridge & Malling Borough Council,6/22/2022,0041034416/1,41034416, 1409.72,Rundle & Co Ltd,00087200,,Bailiffs Commission,Local Revenue & NNDR Collect,D41QA000044075,
http://statistics.data.gov.uk/id/local-authority/29UP,Tonbridge & Malling Borough Council,6/22/2022,0041034417/1,41034417, 4865.06,Rundle & Co Ltd,00087200,,Bailiffs Commission,Local Revenue & NNDR Collect,D41QA000044075,
http://statistics.data.gov.uk/id/local-authority/29UP,Tonbridge & Malling Borough Council,6/22/2022,0041034418/1,41034418, 1428.18,The Oyster Partnership,01196400,,Temporary Staff,Finance Sals&Overheads,D01AFDF1111300,
http://statistics.data.gov.uk/id/local-authority/29UP,Tonbridge & Malling Borough Council,6/22/2022,0041034419/1,41034419, 793.16,Morgan Hunt UK Ltd,01086900,,Temporary Staff,Finance Sals&Overheads,D01AFDF1111300,
http://statistics.data.gov.uk/id/local-authority/29UP,Tonbridge & Malling Borough Council,6/22/2022,0041034420/1,41034420, 1181.25,Morgan Hunt UK Ltd,01086900,,Temporary Staff,Finance Sals&Overheads,D01AFDF1111300,
http://statistics.data.gov.uk/id/local-authority/29UP,Tonbridge & Malling Borough Council,6/22/2022,0041034421/1,41034421, 80.00,WorldPay Ltd,01402000,991280207,Credit Card Commission,Banking Arrangements,D43QK000044082,
http://statistics.data.gov.uk/id/local-authority/29UP,Tonbridge & Malling Borough Council,6/22/2022,0041034421/2,41034421, 62.08,WorldPay Ltd,01402000,991280207,Credit Card Commission,Banking Arrangements,D43QK000044082,
http://statistics.data.gov.uk/id/local-authority/29UP,Tonbridge & Malling Borough Council,6/22/2022,0041034421/3,41034421, 0.64,WorldPay Ltd,01402000,991280207,Credit Card Commission,Banking Arrangements,D43QK000044082,
http://statistics.data.gov.uk/id/local-authority/29UP,Tonbridge & Malling Borough Council,6/22/2022,0041034422/1,41034422, 80.00,WorldPay Ltd,01402000,991280207,Credit Card Commission,Banking Arrangements,D43QK000044082,
http://statistics.data.gov.uk/id/local-authority/29UP,Tonbridge & Malling Borough Council,6/22/2022,0041034422/2,41034422, 165.92,WorldPay Ltd,01402000,991280207,Credit Card Commission,Banking Arrangements,D43QK000044082,
http://statistics.data.gov.uk/id/local-authority/29UP,Tonbridge & Malling Borough Council,6/22/2022,0041034422/3,41034422, 0.08,WorldPay Ltd,01402000,991280207,Credit Card Commission,Banking Arrangements,D43QK000044082,
http://statistics.data.gov.uk/id/local-authority/29UP,Tonbridge & Malling Borough Council,6/22/2022,0041034423/1,41034423, 1750.00,NEC Software Solutions UK Ltd,01073900,202159745,Stationery,Local Revenue & NNDR Collect,D41QA000043003,410032209
http://statistics.data.gov.uk/id/local-authority/29UP,Tonbridge & Malling Borough Council,6/22/2022,0041034424/1,41034424, 2200.00,NEC Software Solutions UK Ltd,01073900,202159745,Stationery,Local Revenue & NNDR Collect,D41QA000043003,410032209
http://statistics.data.gov.uk/id/local-authority/29UP,Tonbridge & Malling Borough Council,6/22/2022,0041034424/2,41034424, 7000.00,NEC Software Solutions UK Ltd,01073900,202159745,Stationery,Local Revenue & NNDR Collect,D41QA000043003,410032209
http://statistics.data.gov.uk/id/local-authority/29UP,Tonbridge & Malling Borough Council,6/22/2022,0041034430/1,41034430, 2265.00,H.M. Revenue & Customs,00048400,,Levy Payment,Apprenticeship Scheme,D10DE000013700,
http://statistics.data.gov.uk/id/local-authority/29UP,Tonbridge & Malling Borough Council,6/22/2022,0051008711/10,51008711, 72.00,Maidstone & Tun Wells NHS Trust,00067100,,Occuptional Health Medicals,Health Care,D10DBDJ0113311,400013054
http://statistics.data.gov.uk/id/local-authority/29UP,Tonbridge & Malling Borough Council,6/22/2022,0051008711/11,51008711, 30.00,Maidstone & Tun Wells NHS Trust,00067100,,Occuptional Health Medicals,Health Care,D10DBDJ0213311,400013054
http://statistics.data.gov.uk/id/local-authority/29UP,Tonbridge & Malling Borough Council,6/22/2022,0051008711/12,51008711, 30.00,Maidstone & Tun Wells NHS Trust,00067100,,Occuptional Health Medicals,Health Care,D10DBDJ0313311,400013054
http://statistics.data.gov.uk/id/local-authority/29UP,Tonbridge & Malling Borough Council,6/22/2022,0051008711/13,51008711, 30.00,Maidstone & Tun Wells NHS Trust,00067100,,Occuptional Health Medicals,Health Care,D10DBDN0113311,400013054
http://statistics.data.gov.uk/id/local-authority/29UP,Tonbridge & Malling Borough Council,6/22/2022,0051008711/14,51008711, 60.00,Maidstone & Tun Wells NHS Trust,00067100,,Occuptional Health Medicals,Health Care,D10DBDV0713311,400013054
http://statistics.data.gov.uk/id/local-authority/29UP,Tonbridge & Malling Borough Council,6/22/2022,0051008711/15,51008711, 72.00,Maidstone & Tun Wells NHS Trust,00067100,,Occuptional Health Medicals,Health Care,D10DBDV0713311,400013054
http://statistics.data.gov.uk/id/local-authority/29UP,Tonbridge & Malling Borough Council,6/22/2022,0051008711/3,51008711, 30.00,Maidstone & Tun Wells NHS Trust,00067100,,Occuptional Health Medicals,Health Care,D10DBDA0713311,400013054
http://statistics.data.gov.uk/id/local-authority/29UP,Tonbridge & Malling Borough Council,6/22/2022,0051008711/4,51008711, 30.00,Maidstone & Tun Wells NHS Trust,00067100,,Occuptional Health Medicals,Health Care,D10DBDB0013311,400013054
http://statistics.data.gov.uk/id/local-authority/29UP,Tonbridge & Malling Borough Council,6/22/2022,0051008711/5,51008711, 30.00,Maidstone & Tun Wells NHS Trust,00067100,,Occuptional Health Medicals,Health Care,D10DBDB0313311,400013054
http://statistics.data.gov.uk/id/local-authority/29UP,Tonbridge & Malling Borough Council,6/22/2022,0051008711/6,51008711, 30.00,Maidstone & Tun Wells NHS Trust,00067100,,Occuptional Health Medicals,Health Care,D10DBDE0413311,400013054
http://statistics.data.gov.uk/id/local-authority/29UP,Tonbridge & Malling Borough Council,6/22/2022,0051008711/7,51008711, 30.00,Maidstone & Tun Wells NHS Trust,00067100,,Occuptional Health Medicals,Health Care,D10DBDG0113311,400013054
http://statistics.data.gov.uk/id/local-authority/29UP,Tonbridge & Malling Borough Council,6/22/2022,0051008711/8,51008711, 30.00,Maidstone & Tun Wells NHS Trust,00067100,,Occuptional Health Medicals,Health Care,D10DBDJ0113311,400013054
http://statistics.data.gov.uk/id/local-authority/29UP,Tonbridge & Malling Borough Council,6/22/2022,0051008711/9,51008711, 260.00,Maidstone & Tun Wells NHS Trust,00067100,,Occuptional Health Medicals,Health Care,D10DBDJ0113311,400013054
http://statistics.data.gov.uk/id/local-authority/29UP,Tonbridge & Malling Borough Council,6/22/2022,0051008712/1,51008712, 15.00,Cantium Business Solutions Ltd,01698600,,Criminal Records Bureau Checks,Recruitment Expenses,D10DADG0113180,510010581
http://statistics.data.gov.uk/id/local-authority/29UP,Tonbridge & Malling Borough Council,6/22/2022,0051008712/2,51008712, 76.00,Cantium Business Solutions Ltd,01698600,,Criminal Records Bureau Checks,Recruitment Expenses,D10DADG0113180,510010581
http://statistics.data.gov.uk/id/local-authority/29UP,Tonbridge & Malling Borough Council,6/23/2022,0041034440/1,41034440, 2848.99,Cater-Kwik Ltd,01265500,,Initial Furniture & Equipment,Capital Renewals Leisure,P05KGBC0209906,
http://statistics.data.gov.uk/id/local-authority/29UP,Tonbridge & Malling Borough Council,6/23/2022,0041034442/1,41034442, 68.00,National Westminster Bank Plc,00069400,,Direct Debit / Bank Charges,Local Revenue & NNDR Collect,D41QA000044079,
http://statistics.data.gov.uk/id/local-authority/29UP,Tonbridge & Malling Borough Council,6/23/2022,0041034443/1,41034443, 200.13,National Westminster Bank Plc,00069400,,Direct Debit / Bank Charges,Local Revenue & NNDR Collect,D41QA000044079,
http://statistics.data.gov.uk/id/local-authority/29UP,Tonbridge & Malling Borough Council,6/23/2022,0041034444/1,41034444, 15.00,WorldPay ,01568000,,Credit Card Commission,Banking Arrangements,D43QK000044082,
http://statistics.data.gov.uk/id/local-authority/29UP,Tonbridge & Malling Borough Council,6/23/2022,0041034445/1,41034445, 180.16,WorldPay ,01568000,,Credit Card Commission,Banking Arrangements,D43QK000044082,
http://statistics.data.gov.uk/id/local-authority/29UP,Tonbridge & Malling Borough Council,6/23/2022,0041034446/1,41034446, 1069.19,WorldPay ,01568000,,Credit Card Commission,Banking Arrangements,D43QK000044082,
http://statistics.data.gov.uk/id/local-authority/29UP,Tonbridge & Malling Borough Council,6/23/2022,0041034447/1,41034447, 2367.57,WorldPay ,01568000,,Credit Card Commission,Banking Arrangements,D43QK000044082,
http://statistics.data.gov.uk/id/local-authority/29UP,Tonbridge & Malling Borough Council,6/23/2022,0041034447/2,41034447, 228.44,WorldPay ,01568000,,Credit Card Commission,Banking Arrangements,D43QK000044082,
http://statistics.data.gov.uk/id/local-authority/29UP,Tonbridge & Malling Borough Council,6/23/2022,0041034448/1,41034448, 159.80,Eurobambino,01852300,,Other Expenses,LLCP Facility Improv,P05FF000009908,
http://statistics.data.gov.uk/id/local-authority/29UP,Tonbridge & Malling Borough Council,6/24/2022,0041034449/1,41034449, 1554.94,Picnic-Benches UK,01853400,,Other Expenses,LLCP Facility Improv,P05FF000009908,
http://statistics.data.gov.uk/id/local-authority/29UP,Tonbridge & Malling Borough Council,6/29/2022,0011044560/1,11044560, 990.00,Comfort Controls  (Service) Limited,01226700,,BRREP BMS System Mntce/Upgrade,Larkfield Leisure Centre,M15HDP20001912,110069337
http://statistics.data.gov.uk/id/local-authority/29UP,Tonbridge & Malling Borough Council,6/29/2022,0011044561/1,11044561, 3042.00,Westcountry Group,00656400,,Stationery,Local Revenue & NNDR Collect,D41QA000043003,110069591
http://statistics.data.gov.uk/id/local-authority/29UP,Tonbridge & Malling Borough Council,6/29/2022,0011044561/2,11044561, 1798.00,Westcountry Group,00656400,,Purchases,Central Stationery Stock A/c,K03AD000001002,110069591
http://statistics.data.gov.uk/id/local-authority/29UP,Tonbridge & Malling Borough Council,6/29/2022,0011044562/1,11044562, 920.00,G C Industrial Heating Services,00578100,,BRREP Plant renewals,Larkfield Leisure Centre,M15HDP20001909,110069619
http://statistics.data.gov.uk/id/local-authority/29UP,Tonbridge & Malling Borough Council,6/29/2022,0011044563/1,11044563, 2280.00,Broadwater Technologies,01534500,,BRREP Plant renewals,Tonbridge Swimming Pool,M15HBP20001909,110069603
http://statistics.data.gov.uk/id/local-authority/29UP,Tonbridge & Malling Borough Council,6/29/2022,0011044564/1,11044564, 1207.80,Venn Group Ltd,00914300,,Temporary Staff,Legal Sals&Overheads,D01ARDR0011300,
http://statistics.data.gov.uk/id/local-authority/29UP,Tonbridge & Malling Borough Council,6/29/2022,0011044565/1,11044565, 175.00,Francis Taylor Building,01688700,,Legal Fees,Legal Sals&Overheads,D01ARDR0044002,
http://statistics.data.gov.uk/id/local-authority/29UP,Tonbridge & Malling Borough Council,6/29/2022,0011044568/1,11044568, 1059.35,KH Recruitment Ltd,01738900,,Temporary Staff,Personnel Sals&Overheads,D01ABDB0311300,
http://statistics.data.gov.uk/id/local-authority/29UP,Tonbridge & Malling Borough Council,6/29/2022,0011044570/1,11044570, 472.80,Canon (UK) Limited,00298700,,Purchases - Paper,Printing,D22GA000040102,
http://statistics.data.gov.uk/id/local-authority/29UP,Tonbridge & Malling Borough Council,6/29/2022,0011044571/1,11044571, 46.65,Premier Paper Group,01421800,,Purchases - Paper,Printing,D22GA000040102,
http://statistics.data.gov.uk/id/local-authority/29UP,Tonbridge & Malling Borough Council,6/29/2022,0011044572/1,11044572, 40.00,The Lord Mayor's Ball,01335600,,Hospitality,Mayoral & Other Member Support,D29LX000048003,
http://statistics.data.gov.uk/id/local-authority/29UP,Tonbridge & Malling Borough Council,6/29/2022,0011044573/1,11044573, 5.83,REDACTED PERSONAL DATA,01189400,,Other Expenses,Mayoral & Other Member Support,D29LX000048010,
http://statistics.data.gov.uk/id/local-authority/29UP,Tonbridge & Malling Borough Council,6/29/2022,0011044574/1,11044574, 277.91,Chubb Fire & Security Ltd,00115400,174605362,BRREP Servicing-IntruderAlarm,Angel Centre,M15HAP20001939,
http://statistics.data.gov.uk/id/local-authority/29UP,Tonbridge & Malling Borough Council,6/29/2022,0011044575/1,11044575, 89.00,BML Building Services Ltd,01505000,,BRREP Response - General,Angel Centre,M15HAP50001997,
http://statistics.data.gov.uk/id/local-authority/29UP,Tonbridge & Malling Borough Council,6/29/2022,0011044576/1,11044576, 79.00,BML Building Services Ltd,01505000,,BRREP Signage Maintenance,PC - General,M15JAP20001948,
http://statistics.data.gov.uk/id/local-authority/29UP,Tonbridge & Malling Borough Council,6/29/2022,0011044577/1,11044577, 168.60,Eddie Prescott,01739400,,Purchases,TIC Stock Account,K18AX000001002,
http://statistics.data.gov.uk/id/local-authority/29UP,Tonbridge & Malling Borough Council,6/29/2022,0011044578/1,11044578, 130.00,Local Land Charges Institute,01025500,,Professional Membership,Legal Sals&Overheads,D01ARDR0347001,110069511
http://statistics.data.gov.uk/id/local-authority/29UP,Tonbridge & Malling Borough Council,6/29/2022,0011044579/1,11044579, 520.70,The Knight Shop International,01738800,,Purchases,TIC Stock Account,K18AX000001002,
http://statistics.data.gov.uk/id/local-authority/29UP,Tonbridge & Malling Borough Council,6/29/2022,0012008385/1,12008385, 80.00,Electrosonic Ltd,00031100,,Maintenance - Ancillary Equip,Information Technology,D27KD000040137,410032180
http://statistics.data.gov.uk/id/local-authority/29UP,Tonbridge & Malling Borough Council,6/29/2022,0012008385/2,12008385, 320.00,Electrosonic Ltd,00031100,,Maintenance - Ancillary Equip,Information Technology,D27KD000040137,410032180
http://statistics.data.gov.uk/id/local-authority/29UP,Tonbridge & Malling Borough Council,6/29/2022,0012008386/1,12008386, 13680.00,NEC Software Solutions UK Ltd,01073900,202159745,Software Hire & Support,Information Technology,D27KD000044059,410032190
http://statistics.data.gov.uk/id/local-authority/29UP,Tonbridge & Malling Borough Council,6/29/2022,0012008386/2,12008386, 4560.00,NEC Software Solutions UK Ltd,01073900,202159745,Software Hire & Support,Information Technology,D27KD000044059,410032190
http://statistics.data.gov.uk/id/local-authority/29UP,Tonbridge & Malling Borough Council,6/29/2022,0012008386/3,12008386, 3060.00,NEC Software Solutions UK Ltd,01073900,202159745,Software Hire & Support,Information Technology,D27KD000044059,410032190
http://statistics.data.gov.uk/id/local-authority/29UP,Tonbridge & Malling Borough Council,6/29/2022,0012008386/4,12008386, 13980.00,NEC Software Solutions UK Ltd,01073900,202159745,Software Hire & Support,Information Technology,D27KD000044059,410032190
http://statistics.data.gov.uk/id/local-authority/29UP,Tonbridge & Malling Borough Council,6/29/2022,0012008386/5,12008386, 5100.00,NEC Software Solutions UK Ltd,01073900,202159745,Software Hire & Support,Information Technology,D27KD000044059,410032190
http://statistics.data.gov.uk/id/local-authority/29UP,Tonbridge & Malling Borough Council,6/29/2022,0012008387/1,12008387, 976.00,Dataquest Ltd - CC Engineering Limited,01233100,438498209,Maintenance - Ancillary Equip,Information Technology,D27KD000040137,410032199
http://statistics.data.gov.uk/id/local-authority/29UP,Tonbridge & Malling Borough Council,6/29/2022,0012008388/1,12008388, 59.96,CCS Media Ltd,00018000,,Purchases,Information Technology,D27KD000040101,410032210
http://statistics.data.gov.uk/id/local-authority/29UP,Tonbridge & Malling Borough Council,6/29/2022,0012008388/2,12008388, 209.86,CCS Media Ltd,00018000,,Purchases,Information Technology,D27KD000040101,410032210
http://statistics.data.gov.uk/id/local-authority/29UP,Tonbridge & Malling Borough Council,6/29/2022,0012008389/1,12008389, 6.00,CCS Media Ltd,00018000,,Delivery Expenses,Information Technology,D27KD000044069,410032213
http://statistics.data.gov.uk/id/local-authority/29UP,Tonbridge & Malling Borough Council,6/29/2022,0012008389/2,12008389, 899.95,CCS Media Ltd,00018000,,Initial Furniture & Equipment,Capital Renewals IT,P06FBFB1009906,410032213
http://statistics.data.gov.uk/id/local-authority/29UP,Tonbridge & Malling Borough Council,6/29/2022,0012008390/1,12008390, 99.00,Get It Repaired,01631300,287357752,Maintenance - Micros,Information Technology,D27KD000040140,410032216
http://statistics.data.gov.uk/id/local-authority/29UP,Tonbridge & Malling Borough Council,6/29/2022,0012008391/1,12008391, 6.43,Amazon EU SARL,01738400,,Purchases,Information Technology,D27KD000040101,410032215
http://statistics.data.gov.uk/id/local-authority/29UP,Tonbridge & Malling Borough Council,6/29/2022,0012008391/2,12008391, 8.66,Amazon EU SARL,01738400,,Purchases,Information Technology,D27KD000040101,410032215
http://statistics.data.gov.uk/id/local-authority/29UP,Tonbridge & Malling Borough Council,6/29/2022,0012008391/3,12008391, 4.15,Amazon EU SARL,01738400,,Delivery Expenses,Information Technology,D27KD000044069,410032215
http://statistics.data.gov.uk/id/local-authority/29UP,Tonbridge & Malling Borough Council,6/29/2022,0021037920/1,21037920, 66.00,ASW Connect Ltd,01846900,,Partnership Fees,Youth Partnerships,B33PG000044048,
http://statistics.data.gov.uk/id/local-authority/29UP,Tonbridge & Malling Borough Council,6/29/2022,0021037993/1,21037993, 2050.00,Clear Skies Software Ltd,00579500,,Purchases,Cemetery,B26MP000040101,210056740
http://statistics.data.gov.uk/id/local-authority/29UP,Tonbridge & Malling Borough Council,6/29/2022,0021037994/1,21037994, 112299.75,Alliance Leisure Services Ltd,01781100,,Contract Payments,LLCP Facility Improv,P05FF000009904,
http://statistics.data.gov.uk/id/local-authority/29UP,Tonbridge & Malling Borough Council,6/29/2022,0021037995/1,21037995, 450.80,Landscape Services Ltd,00057600,,Maintenance of Grounds,Sports Grounds,B13ET000020402,210056804
http://statistics.data.gov.uk/id/local-authority/29UP,Tonbridge & Malling Borough Council,6/29/2022,0021037996/1,21037996, 65.26,B&Q/Screwfix Direct(TradeUKAccount),00141300,,Maintenance of Grounds,Haysden Country Park,B22LC000020402,
http://statistics.data.gov.uk/id/local-authority/29UP,Tonbridge & Malling Borough Council,6/29/2022,0021037997/1,21037997, 8304.60,Wicksteed Leisure Limited,00167900,,Initial Furniture & Equipment,Capital Renewals Leisure,P05KGBC0509906,210056668
http://statistics.data.gov.uk/id/local-authority/29UP,Tonbridge & Malling Borough Council,6/29/2022,0021037998/1,21037998, 1995.00,Brentwood Communications Ltd,01850400,,Initial Furniture & Equipment,Capital Renewals Leisure,P05KGBC0309906,
http://statistics.data.gov.uk/id/local-authority/29UP,Tonbridge & Malling Borough Council,6/29/2022,0022026775/1,22026775, 30.15,REDACTED PERSONAL DATA,00996900,,Other Expenses,Dry Recycling,H34SR000048010,
http://statistics.data.gov.uk/id/local-authority/29UP,Tonbridge & Malling Borough Council,6/29/2022,0022026776/1,22026776, 2588.00,Enviro Technology Services PLC,01461300,,Air Quality Monitoring,Environmental Protection,H32SN000054016,220003243
http://statistics.data.gov.uk/id/local-authority/29UP,Tonbridge & Malling Borough Council,6/29/2022,0022026777/1,22026777, 1572.94,Clarion Housing,01776300,,Rent Deposit / Rent in Advance,Homelessness,C01AAC83644093,
http://statistics.data.gov.uk/id/local-authority/29UP,Tonbridge & Malling Borough Council,6/29/2022,0022026778/1,22026778, 10.83,REDACTED PERSONAL DATA,01826100,,Purchases,Environmental Protection,H32SN000040101,
http://statistics.data.gov.uk/id/local-authority/29UP,Tonbridge & Malling Borough Council,6/29/2022,0022026779/1,22026779, 200.00,Monitor Pest Control Ltd,01476700,,Other Expenses,Pest Control,H24SE000048010,
http://statistics.data.gov.uk/id/local-authority/29UP,Tonbridge & Malling Borough Council,6/29/2022,0022026780/1,22026780, 510.00,Town & Country Housing Group,01385400,,Countywide DFG Project,Private Sector Housing Renewal,C03BD000044031,
http://statistics.data.gov.uk/id/local-authority/29UP,Tonbridge & Malling Borough Council,6/29/2022,0022026781/1,22026781, 630.00,Town & Country Housing Group,01385400,,Countywide DFG Project,Private Sector Housing Renewal,C03BD000044031,
http://statistics.data.gov.uk/id/local-authority/29UP,Tonbridge & Malling Borough Council,6/29/2022,0022026782/1,22026782, 13030.43,Daytrad,01425400,,Other Expenses,Disabled Facilities Grant Mand,P03AC000009908,
http://statistics.data.gov.uk/id/local-authority/29UP,Tonbridge & Malling Borough Council,6/29/2022,0022026783/1,22026783, 1876.38,Town & Country Housing Group,01385400,,Other Expenses,Disabled Facilities Grant Mand,P03AC000009908,
http://statistics.data.gov.uk/id/local-authority/29UP,Tonbridge & Malling Borough Council,6/29/2022,0022026784/1,22026784, 120.56,E.ON - Next,01790900,,Electricity,Homelessness,C01AATNPR21002,
http://statistics.data.gov.uk/id/local-authority/29UP,Tonbridge & Malling Borough Council,6/29/2022,0022026785/1,22026785, 311.25,British Gas Services LTD,01260000,,Electricity,Homelessness,C01AAMAUN21002,
http://statistics.data.gov.uk/id/local-authority/29UP,Tonbridge & Malling Borough Council,6/29/2022,0022026786/1,22026786, 2077.00,1st  Steps Housing Kent,01716100,,Temporary Accommodation,Homelessness,C01AA000044051,
http://statistics.data.gov.uk/id/local-authority/29UP,Tonbridge & Malling Borough Council,6/29/2022,0022026787/1,22026787, 45.46,Bulb Energy Ltd,01799000,214948301,Electricity,Homelessness,C01AA000021002,
http://statistics.data.gov.uk/id/local-authority/29UP,Tonbridge & Malling Borough Council,6/29/2022,0022026787/2,22026787, 12.43,Bulb Energy Ltd,01799000,214948301,Electricity,Homelessness,C01AA000021002,
http://statistics.data.gov.uk/id/local-authority/29UP,Tonbridge & Malling Borough Council,6/29/2022,0022026787/3,22026787, 15.00,Bulb Energy Ltd,01799000,214948301,Electricity,Homelessness,C01AA000021002,
http://statistics.data.gov.uk/id/local-authority/29UP,Tonbridge & Malling Borough Council,6/29/2022,0022026788/1,22026788, 1221.00,G2 Recruitment Solutions,01786000,,Temporary Staff,Env Hlth & Hsg Sals&Overheads,D01AVDV0711300,
http://statistics.data.gov.uk/id/local-authority/29UP,Tonbridge & Malling Borough Council,6/29/2022,0022026789/7,22026789, 1208.88,G2 Recruitment Solutions,01786000,,Temporary Staff,Env Hlth & Hsg Sals&Overheads,D01AVDV0711300,
http://statistics.data.gov.uk/id/local-authority/29UP,Tonbridge & Malling Borough Council,6/29/2022,0022026791/1,22026791, 1472.26,Vivid Resourcing,01773700,,Temporary Staff,Env Hlth & Hsg Sals&Overheads,D01AVDV0711300,
http://statistics.data.gov.uk/id/local-authority/29UP,Tonbridge & Malling Borough Council,6/29/2022,0022026792/1,22026792, 1239.50,Vivid Resourcing,01773700,,Temporary Staff,Env Hlth & Hsg Sals&Overheads,D01AVDV0711300,
http://statistics.data.gov.uk/id/local-authority/29UP,Tonbridge & Malling Borough Council,6/29/2022,0022026793/1,22026793, 39.99,B&Q/Screwfix Direct(TradeUKAccount),00141300,,Purchases,Street Scene,H23SD000040101,
http://statistics.data.gov.uk/id/local-authority/29UP,Tonbridge & Malling Borough Council,6/29/2022,0022026794/1,22026794, 42.99,B&Q/Screwfix Direct(TradeUKAccount),00141300,,Purchases,Street Scene,H23SD000040101,
http://statistics.data.gov.uk/id/local-authority/29UP,Tonbridge & Malling Borough Council,6/29/2022,0022026797/1,22026797, 9950.00,Enviro Technology Services PLC,01461300,,Initial Furniture & Equipment,Air Quality Monitoring Station,P02EN000009906,220003224
http://statistics.data.gov.uk/id/local-authority/29UP,Tonbridge & Malling Borough Council,6/29/2022,0031018723/1,31018723, 19.99,REDACTED PERSONAL DATA,01526800,,Uniforms,Parking Off-Street,E10HA000042002,
http://statistics.data.gov.uk/id/local-authority/29UP,Tonbridge & Malling Borough Council,6/29/2022,0031018723/2,31018723, 19.99,REDACTED PERSONAL DATA,01526800,,Uniforms,Parking On-Street,E10HD000042002,
http://statistics.data.gov.uk/id/local-authority/29UP,Tonbridge & Malling Borough Council,6/29/2022,0031018724/1,31018724, 6.00,KelticLimited,01000400,,Uniforms,Parking Off-Street,E10HA000042002,310042837
http://statistics.data.gov.uk/id/local-authority/29UP,Tonbridge & Malling Borough Council,6/29/2022,0031018724/2,31018724, 3.98,KelticLimited,01000400,,Uniforms,Parking Off-Street,E10HA000042002,310042837
http://statistics.data.gov.uk/id/local-authority/29UP,Tonbridge & Malling Borough Council,6/29/2022,0031018724/3,31018724, 17.90,KelticLimited,01000400,,Uniforms,Parking Off-Street,E10HA000042002,310042837
http://statistics.data.gov.uk/id/local-authority/29UP,Tonbridge & Malling Borough Council,6/29/2022,0031018724/4,31018724, 7.90,KelticLimited,01000400,,Uniforms,Parking Off-Street,E10HA000042002,310042837
http://statistics.data.gov.uk/id/local-authority/29UP,Tonbridge & Malling Borough Council,6/29/2022,0031018724/5,31018724, 26.85,KelticLimited,01000400,,Uniforms,Parking On-Street,E10HD000042002,310042837
http://statistics.data.gov.uk/id/local-authority/29UP,Tonbridge & Malling Borough Council,6/29/2022,0031018724/6,31018724, 5.97,KelticLimited,01000400,,Uniforms,Parking On-Street,E10HD000042002,310042837
http://statistics.data.gov.uk/id/local-authority/29UP,Tonbridge & Malling Borough Council,6/29/2022,0031018724/7,31018724, 9.00,KelticLimited,01000400,,Uniforms,Parking On-Street,E10HD000042002,310042837
http://statistics.data.gov.uk/id/local-authority/29UP,Tonbridge & Malling Borough Council,6/29/2022,0031018724/8,31018724, 11.85,KelticLimited,01000400,,Uniforms,Parking On-Street,E10HD000042002,310042837
http://statistics.data.gov.uk/id/local-authority/29UP,Tonbridge & Malling Borough Council,6/29/2022,0031018726/1,31018726, 100.00,Securemedia LTD,01724000,,Stationery,Parking Off-Street,E10HA000043003,310042836
http://statistics.data.gov.uk/id/local-authority/29UP,Tonbridge & Malling Borough Council,6/29/2022,0031018726/2,31018726, 8.00,Securemedia LTD,01724000,,Stationery,Parking Off-Street,E10HA000043003,310042836
http://statistics.data.gov.uk/id/local-authority/29UP,Tonbridge & Malling Borough Council,6/29/2022,0031018726/3,31018726, 12.00,Securemedia LTD,01724000,,Stationery,Parking On-Street,E10HD000043003,310042836
http://statistics.data.gov.uk/id/local-authority/29UP,Tonbridge & Malling Borough Council,6/29/2022,0031018726/4,31018726, 300.00,Securemedia LTD,01724000,,Stationery,Parking On-Street,E10HD000043003,310042836
http://statistics.data.gov.uk/id/local-authority/29UP,Tonbridge & Malling Borough Council,6/29/2022,0031018730/1,31018730, 345.00,Archway Highway Services Ltd,01398000,,Premises Repairs & Maintenance,Parking Off-Street,E10HA000020601,310042842
http://statistics.data.gov.uk/id/local-authority/29UP,Tonbridge & Malling Borough Council,6/29/2022,0031018730/2,31018730, 1035.00,Archway Highway Services Ltd,01398000,,Premises Repairs & Maintenance,Parking On-Street,E10HD000020601,310042842
http://statistics.data.gov.uk/id/local-authority/29UP,Tonbridge & Malling Borough Council,6/29/2022,0031018731/1,31018731, 1190.00,Mood Signs Limited,01595800,,Events Support,Events Development,B41TJ000044041,210056820
http://statistics.data.gov.uk/id/local-authority/29UP,Tonbridge & Malling Borough Council,6/29/2022,0031018732/1,31018732, 500.00,Traffic Enforcement Centre,00604200,,Adjudication & Enforcement Ser,Parking Off-Street,E10HA000044230,
http://statistics.data.gov.uk/id/local-authority/29UP,Tonbridge & Malling Borough Council,6/29/2022,0031018732/2,31018732, 500.00,Traffic Enforcement Centre,00604200,,Adjudication & Enforcement Ser,Parking On-Street,E10HD000044230,
http://statistics.data.gov.uk/id/local-authority/29UP,Tonbridge & Malling Borough Council,6/29/2022,0032009628/1,32009628, 2173.50,East Malling & Larkfield Parish Council,00030200,,Payments,S106 - Commuted Sums,M04AD000001001,
http://statistics.data.gov.uk/id/local-authority/29UP,Tonbridge & Malling Borough Council,6/29/2022,0032009629/1,32009629, 4415.83,East Malling & Larkfield Parish Council,00030200,,Payments,S106 - Commuted Sums,M04AD000001001,
http://statistics.data.gov.uk/id/local-authority/29UP,Tonbridge & Malling Borough Council,6/29/2022,0032009630/3,32009630, 2590.00,G2 Recruitment Solutions,01786000,,Temporary Staff,Planning Sals&Overheads,D01AJDJ0111300,
http://statistics.data.gov.uk/id/local-authority/29UP,Tonbridge & Malling Borough Council,6/29/2022,0032009631/3,32009631, 3188.61,G2 Recruitment Solutions,01786000,,Temporary Staff,Planning Sals&Overheads,D01AJDJ0111300,
http://statistics.data.gov.uk/id/local-authority/29UP,Tonbridge & Malling Borough Council,6/29/2022,0032009632/1,32009632, 1986.60,The Oyster Partnership,01196400,,Temporary Staff,Planning Sals&Overheads,D01AJDJ0111300,
http://statistics.data.gov.uk/id/local-authority/29UP,Tonbridge & Malling Borough Council,6/29/2022,0032009633/1,32009633, 654.30,The Oyster Partnership,01196400,,Temporary Staff,Planning Sals&Overheads,D01AJDJ0111300,
http://statistics.data.gov.uk/id/local-authority/29UP,Tonbridge & Malling Borough Council,6/29/2022,0032009634/1,32009634, 552.00,Vivid Resourcing,01773700,,Temporary Staff,Planning Sals&Overheads,D01AJDJ0111300,
http://statistics.data.gov.uk/id/local-authority/29UP,Tonbridge & Malling Borough Council,6/29/2022,0032009635/1,32009635, 2100.00,Vivid Resourcing,01773700,,Temporary Staff,Planning Sals&Overheads,D01AJDJ0111300,
http://statistics.data.gov.uk/id/local-authority/29UP,Tonbridge & Malling Borough Council,6/29/2022,0032009636/1,32009636, 1862.75,Arc4,01652100,,Development of Local Plan,Development of Local Plan,A01AE000044023,310042779
http://statistics.data.gov.uk/id/local-authority/29UP,Tonbridge & Malling Borough Council,6/29/2022,0032009637/1,32009637, 600.00,Environment Agency,00418100,,Development of Local Plan,Development of Local Plan,A01AE000044023,320003400
http://statistics.data.gov.uk/id/local-authority/29UP,Tonbridge & Malling Borough Council,6/29/2022,0032009638/1,32009638, 214.20,KM Media Group Ltd,00053900,,Advertising General,Development Management,A01ABZ99944216,320003419
http://statistics.data.gov.uk/id/local-authority/29UP,Tonbridge & Malling Borough Council,6/29/2022,0041034434/3,41034434, 387.35,KH Recruitment Ltd,01738900,,Temporary Staff,Finance Sals&Overheads,D01AFDF1111300,
http://statistics.data.gov.uk/id/local-authority/29UP,Tonbridge & Malling Borough Council,6/29/2022,0041034434/4,41034434, 366.52,KH Recruitment Ltd,01738900,,Temporary Staff,Finance Sals&Overheads,D01AFDF1111300,
http://statistics.data.gov.uk/id/local-authority/29UP,Tonbridge & Malling Borough Council,6/29/2022,0041034435/7,41034435, 333.96,Morgan Hunt UK Ltd,01086900,,Temporary Staff,Finance Sals&Overheads,D01AFDF1111300,
http://statistics.data.gov.uk/id/local-authority/29UP,Tonbridge & Malling Borough Council,6/29/2022,0041034436/3,41034436, 892.50,Morgan Hunt UK Ltd,01086900,,Temporary Staff,Finance Sals&Overheads,D01AFDF1111300,
http://statistics.data.gov.uk/id/local-authority/29UP,Tonbridge & Malling Borough Council,6/29/2022,0041034437/3,41034437, 2024.18,Rundle & Co Ltd,00087200,,Bailiffs Commission,Local Revenue & NNDR Collect,D41QA000044075,
http://statistics.data.gov.uk/id/local-authority/29UP,Tonbridge & Malling Borough Council,6/29/2022,0041034438/3,41034438, 107.54,Rundle & Co Ltd,00087200,,Bailiffs Commission,Local Revenue & NNDR Collect,D41QA000044075,
http://statistics.data.gov.uk/id/local-authority/29UP,Tonbridge & Malling Borough Council,6/29/2022,0041034450/1,41034450, 1620.44,The Oyster Partnership,01196400,,Temporary Staff,Finance Sals&Overheads,D01AFDF1111300,
http://statistics.data.gov.uk/id/local-authority/29UP,Tonbridge & Malling Borough Council,6/29/2022,0041034451/1,41034451, 4000.00,AON UK Ltd,01613200,,Contract Services,Finance Sals&Overheads,D01AFDF0444005,410032088
http://statistics.data.gov.uk/id/local-authority/29UP,Tonbridge & Malling Borough Council,6/29/2022,0041034452/1,41034452, 2.95,KCS,00054200,,Purchases,Finance Sals&Overheads,D01AFDF1140101,410032214
http://statistics.data.gov.uk/id/local-authority/29UP,Tonbridge & Malling Borough Council,6/29/2022,0041034452/2,41034452, 9.90,KCS,00054200,,Stationery,Finance Sals&Overheads,D01AFDF1143003,410032214
http://statistics.data.gov.uk/id/local-authority/29UP,Tonbridge & Malling Borough Council,6/29/2022,0041034453/1,41034453, 11057.74,NEC Software Solutions UK Ltd,01073900,202159745,Other Expenses,Housing Benefits,C05CL000048010,410032211
http://statistics.data.gov.uk/id/local-authority/29UP,Tonbridge & Malling Borough Council,6/29/2022,0051008713/1,51008713, 882.00,We Are Sunday Ltd,01784900,,Recruitment Advertising,Recruitment Expenses,D10DADA0013110,510010583
